{"text_format":"1","workbook":"xlsx","n_sheets":3,"sheets":["Sheet1","Nemacka2","Sheet3"],"not_rendered":{"charts":0,"images":0,"macros":1,"external_links":0,"defined_names":0,"comments":0,"pivot_tables":0},"unopened":[],"bounds":{"document_bytes":16777216,"sheet_cells":100000,"rows_first":2000,"rows_last":500,"rows_between":2000,"halvings":0,"cell_chars":16384,"cell_head_chars":4096},"cells_cut":0,"cells_raw":0,"read":"whole","date_system":"1900"}

{"sheet":"Sheet1","index":0,"n_rows":554,"n_cols":10,"rows_kept":554,"cut":false,"hidden":false,"merged":[]}
[]
[]
["E1","2009-07-08","Middlesbrough","Sheffield United",0,0,{"$f":"E3+F3","v":0},0,0,{"$f":"H3+I3","v":0}]
["E1","2009-08-08","Cardiff","Scunthorpe",4,0,4,3,0,3]
["E1","2009-08-08","Crystal Palace","Plymouth",1,1,2,0,1,1]
["E1","2009-08-08","Derby","Peterboro",2,1,3,1,0,1]
["E1","2009-08-08","Leicester","Swansea",2,1,3,0,1,1]
["E1","2009-08-08","Preston","Bristol City",2,2,4,0,0,0]
["E1","2009-08-08","QPR","Blackpool",1,1,2,0,1,1]
["E1","2009-08-08","Reading","Nott'm Forest",0,0,0,0,0,0]
["E1","2009-08-08","Sheffield Weds","Barnsley",2,2,4,2,0,2]
["E1","2009-08-08","Watford","Doncaster",1,1,2,1,1,2]
["E1","2009-08-08","West Brom","Newcastle",1,1,2,1,0,1]
["E1","2009-09-08","Coventry","Ipswich",2,1,3,2,1,3]
["E1","15/08/09","Barnsley","Coventry",0,2,2,0,1,1]
["E1","15/08/09","Blackpool","Cardiff",1,1,2,1,1,2]
["E1","15/08/09","Bristol City","Crystal Palace",1,0,1,0,0,0]
["E1","15/08/09","Doncaster","Preston",1,1,2,0,1,1]
["E1","15/08/09","Ipswich","Leicester",0,0,0,0,0,0]
["E1","15/08/09","Newcastle","Reading",3,0,3,1,0,1]
["E1","15/08/09","Nott'm Forest","West Brom",0,1,1,0,0,0]
["E1","15/08/09","Peterboro","Sheffield Weds",1,1,2,0,1,1]
["E1","15/08/09","Plymouth","QPR",1,1,2,0,1,1]
["E1","15/08/09","Scunthorpe","Derby",3,2,5,2,1,3]
["E1","15/08/09","Sheffield United","Watford",2,0,2,1,0,1]
["E1","15/08/09","Swansea","Middlesbrough",0,3,3,0,1,1]
["E1","18/08/09","Barnsley","Preston",0,3,3,0,2,2]
["E1","18/08/09","Blackpool","Derby",0,0,0,0,0,0]
["E1","18/08/09","Bristol City","QPR",1,0,1,0,0,0]
["E1","18/08/09","Doncaster","Coventry",0,0,0,0,0,0]
["E1","18/08/09","Ipswich","Crystal Palace",1,3,4,0,0,0]
["E1","18/08/09","Nott'm Forest","Watford",2,4,6,1,1,2]
["E1","18/08/09","Peterboro","West Brom",2,3,5,1,3,4]
["E1","18/08/09","Plymouth","Cardiff",1,3,4,0,1,1]
["E1","18/08/09","Scunthorpe","Middlesbrough",0,2,2,0,1,1]
["E1","18/08/09","Sheffield United","Leicester",1,1,2,0,0,0]
["E1","18/08/09","Swansea","Reading",0,0,0,0,0,0]
["E1","19/08/09","Newcastle","Sheffield Weds",1,0,1,1,0,1]
["E1","22/08/09","Coventry","Swansea",0,1,1,0,0,0]
["E1","22/08/09","Crystal Palace","Newcastle",0,2,2,0,2,2]
["E1","22/08/09","Derby","Plymouth",2,1,3,1,1,2]
["E1","22/08/09","Leicester","Barnsley",1,0,1,0,0,0]
["E1","22/08/09","Middlesbrough","Doncaster",2,0,2,1,0,1]
["E1","22/08/09","Preston","Peterboro",2,0,2,2,0,2]
["E1","22/08/09","QPR","Nott'm Forest",1,1,2,1,0,1]
["E1","22/08/09","Reading","Sheffield United",1,3,4,1,1,2]
["E1","22/08/09","Sheffield Weds","Scunthorpe",4,0,4,3,0,3]
["E1","22/08/09","Watford","Blackpool",2,2,4,1,0,1]
["E1","22/08/09","West Brom","Ipswich",2,0,2,2,0,2]
["E1","23/08/09","Cardiff","Bristol City",3,0,3,2,0,2]
["E1","29/08/09","Barnsley","Reading",1,3,4,1,1,2]
["E1","29/08/09","Blackpool","Coventry",3,0,3,1,0,1]
["E1","29/08/09","Bristol City","Middlesbrough",2,1,3,0,0,0]
["E1","29/08/09","Doncaster","Cardiff",2,0,2,2,0,2]
["E1","29/08/09","Ipswich","Preston",1,1,2,1,1,2]
["E1","29/08/09","Nott'm Forest","Derby",3,2,5,3,0,3]
["E1","29/08/09","Plymouth","Sheffield Weds",1,3,4,0,1,1]
["E1","29/08/09","Scunthorpe","QPR",0,1,1,0,1,1]
["E1","29/08/09","Sheffield United","West Brom",2,2,4,0,0,0]
["E1","29/08/09","Swansea","Watford",1,1,2,0,0,0]
["E1","31/08/09","Newcastle","Leicester",1,0,1,0,0,0]
["E1","31/08/09","Peterboro","Crystal Palace",1,1,2,0,0,0]
["E1","2009-12-09","Coventry","Bristol City",1,1,2,1,0,1]
["E1","2009-12-09","Crystal Palace","Scunthorpe",0,4,4,0,1,1]
["E1","2009-12-09","Derby","Sheffield United",0,1,1,0,0,0]
["E1","2009-12-09","Leicester","Blackpool",2,1,3,1,1,2]
["E1","2009-12-09","Middlesbrough","Ipswich",3,1,{"$f":"E67+F67","v":4},1,0,{"$f":"H67+I67","v":1}]
["E1","2009-12-09","Preston","Swansea",2,0,2,1,0,1]
["E1","2009-12-09","QPR","Peterboro",1,1,2,1,1,2]
["E1","2009-12-09","Reading","Doncaster",0,0,0,0,0,0]
["E1","2009-12-09","Sheffield Weds","Nott'm Forest",1,1,2,1,1,2]
["E1","2009-12-09","Watford","Barnsley",1,0,1,0,0,0]
["E1","2009-12-09","West Brom","Plymouth",3,1,4,2,1,3]
["E1","13/09/09","Cardiff","Newcastle",0,1,1,0,1,1]
["E1","15/09/09","Coventry","Sheffield United",3,2,5,1,1,2]
["E1","15/09/09","Derby","Barnsley",2,3,5,1,1,2]
["E1","15/09/09","Ipswich","Nott'm Forest",1,1,2,1,0,1]
["E1","15/09/09","Leicester","Peterboro",1,1,2,0,1,1]
["E1","15/09/09","Plymouth","Watford",0,1,1,0,1,1]
["E1","15/09/09","Scunthorpe","Preston",3,1,4,2,0,2]
["E1","15/09/09","Sheffield Weds","Middlesbrough",1,3,4,1,1,2]
["E1","15/09/09","Swansea","Bristol City",0,0,0,0,0,0]
["E1","15/09/09","West Brom","Doncaster",3,1,4,1,1,2]
["E1","16/09/09","Blackpool","Newcastle",2,1,3,1,1,2]
["E1","16/09/09","Reading","Cardiff",0,1,1,0,0,0]
["E1","18/09/09","Sheffield United","Sheffield Weds",3,2,5,3,0,3]
["E1","19/09/09","Barnsley","Swansea",0,0,0,0,0,0]
["E1","19/09/09","Bristol City","Scunthorpe",1,1,2,0,0,0]
["E1","19/09/09","Cardiff","QPR",0,2,2,0,2,2]
["E1","19/09/09","Crystal Palace","Derby",1,0,1,0,0,0]
["E1","19/09/09","Doncaster","Ipswich",3,3,6,1,0,1]
["E1","19/09/09","Middlesbrough","West Brom",0,5,5,0,3,3]
["E1","19/09/09","Newcastle","Plymouth",3,1,4,1,0,1]
["E1","19/09/09","Nott'm Forest","Blackpool",0,1,1,0,1,1]
["E1","19/09/09","Peterboro","Reading",3,2,5,0,2,2]
["E1","19/09/09","Preston","Coventry",3,2,5,0,1,1]
["E1","19/09/09","Watford","Leicester",3,3,6,0,2,2]
["E1","26/09/09","Blackpool","Peterboro",2,0,2,2,0,2]
["E1","26/09/09","Coventry","Middlesbrough",2,2,4,0,2,2]
["E1","26/09/09","Derby","Bristol City",1,0,1,0,0,0]
["E1","26/09/09","Ipswich","Newcastle",0,4,4,0,3,3]
["E1","26/09/09","Leicester","Preston",1,2,3,0,1,1]
["E1","26/09/09","QPR","Barnsley",5,2,7,3,0,3]
["E1","26/09/09","Reading","Watford",1,1,2,1,0,1]
["E1","26/09/09","Scunthorpe","Doncaster",2,2,4,0,1,1]
["E1","26/09/09","Sheffield Weds","Cardiff",3,1,4,1,1,2]
["E1","26/09/09","Swansea","Sheffield United",2,1,3,0,0,0]
["E1","26/09/09","West Brom","Crystal Palace",0,1,1,0,0,0]
["E1","27/09/09","Plymouth","Nott'm Forest",0,1,1,0,1,1]
["E1","29/09/09","Barnsley","West Brom",3,1,4,2,0,2]
["E1","29/09/09","Bristol City","Blackpool",2,0,2,1,0,1]
["E1","29/09/09","Cardiff","Derby",6,1,7,2,0,2]
["E1","29/09/09","Crystal Palace","Sheffield Weds",0,0,0,0,0,0]
["E1","29/09/09","Doncaster","Swansea",0,0,0,0,0,0]
["E1","29/09/09","Middlesbrough","Leicester",0,1,1,0,0,0]
["E1","29/09/09","Peterboro","Plymouth",1,2,3,0,0,0]
["E1","29/09/09","Preston","Reading",1,2,3,0,2,2]
["E1","29/09/09","Sheffield United","Ipswich",3,3,6,1,2,3]
["E1","29/09/09","Watford","Coventry",2,3,5,2,1,3]
["E1","30/09/09","Newcastle","QPR",1,1,2,0,1,1]
["E1","30/09/09","Nott'm Forest","Scunthorpe",2,0,2,0,0,0]
["E1","2009-03-10","Barnsley","Ipswich",2,1,3,1,1,2]
["E1","2009-03-10","Coventry","Leicester",1,1,2,1,0,1]
["E1","2009-03-10","Crystal Palace","Blackpool",4,1,5,2,0,2]
["E1","2009-03-10","Derby","Sheffield Weds",3,0,3,1,0,1]
["E1","2009-03-10","Newcastle","Bristol City",0,0,0,0,0,0]
["E1","2009-03-10","Peterboro","Nott'm Forest",1,2,3,0,0,0]
["E1","2009-03-10","Plymouth","Scunthorpe",2,1,3,0,0,0]
["E1","2009-03-10","Preston","West Brom",0,0,0,0,0,0]
["E1","2009-03-10","Reading","Middlesbrough",0,2,2,0,1,1]
["E1","2009-03-10","Sheffield United","Doncaster",1,1,{"$f":"E131+F131","v":2},0,1,{"$f":"H131+I131","v":1}]
["E1","2009-03-10","Swansea","QPR",2,0,2,0,0,0]
["E1","2009-03-10","Watford","Cardiff",0,4,4,0,2,2]
["E1","17/10/09","Blackpool","Plymouth",2,0,2,1,0,1]
["E1","17/10/09","Bristol City","Peterboro",1,1,2,1,0,1]
["E1","17/10/09","Cardiff","Crystal Palace",1,1,2,1,1,2]
["E1","17/10/09","Doncaster","Barnsley",0,1,1,0,0,0]
["E1","17/10/09","Ipswich","Swansea",1,1,2,1,1,2]
["E1","17/10/09","Leicester","Derby",0,0,0,0,0,0]
["E1","17/10/09","Middlesbrough","Watford",0,1,1,0,1,1]
["E1","17/10/09","Nott'm Forest","Newcastle",1,0,1,1,0,1]
["E1","17/10/09","QPR","Preston",4,0,4,1,0,1]
["E1","17/10/09","Scunthorpe","Sheffield United",3,1,4,1,0,1]
["E1","17/10/09","Sheffield Weds","Coventry",2,0,2,2,0,2]
["E1","17/10/09","West Brom","Reading",3,1,4,1,1,2]
["E1","20/10/09","Blackpool","Sheffield United",3,0,3,0,0,0]
["E1","20/10/09","Bristol City","Plymouth",3,1,4,0,0,0]
["E1","20/10/09","Cardiff","Coventry",2,0,2,1,0,1]
["E1","20/10/09","Doncaster","Peterboro",3,1,4,2,1,3]
["E1","20/10/09","Ipswich","Watford",1,1,2,1,0,1]
["E1","20/10/09","Leicester","Crystal Palace",2,0,2,0,0,0]
["E1","20/10/09","Middlesbrough","Derby",2,0,2,1,0,1]
["E1","20/10/09","Nott'm Forest","Barnsley",1,0,1,0,0,0]
["E1","20/10/09","QPR","Reading",4,1,5,2,0,2]
["E1","20/10/09","Scunthorpe","Newcastle",2,1,3,0,0,0]
["E1","20/10/09","Sheffield Weds","Preston",1,2,3,1,1,2]
["E1","20/10/09","West Brom","Swansea",0,1,1,0,0,0]
["E1","23/10/09","Watford","Sheffield Weds",4,1,5,2,1,3]
["E1","24/10/09","Barnsley","Bristol City",2,3,5,0,2,2]
["E1","24/10/09","Coventry","West Brom",0,0,0,0,0,0]
["E1","24/10/09","Crystal Palace","Nott'm Forest",1,1,2,1,0,1]
["E1","24/10/09","Derby","QPR",2,4,6,2,1,3]
["E1","24/10/09","Newcastle","Doncaster",2,1,3,0,1,1]
["E1","24/10/09","Peterboro","Scunthorpe",3,0,3,2,0,2]
["E1","24/10/09","Plymouth","Ipswich",1,1,2,1,0,1]
["E1","24/10/09","Preston","Middlesbrough",2,2,4,0,1,1]
["E1","24/10/09","Sheffield United","Cardiff",3,4,7,2,2,4]
["E1","24/10/09","Swansea","Blackpool",0,0,0,0,0,0]
["E1","26/10/09","Reading","Leicester",0,1,1,0,1,1]
["E1","30/10/09","QPR","Leicester",1,2,3,1,1,2]
["E1","31/10/09","Bristol City","Sheffield Weds",1,1,2,0,0,0]
["E1","31/10/09","Coventry","Reading",1,3,4,0,1,1]
["E1","31/10/09","Doncaster","Blackpool",3,3,6,1,1,2]
["E1","31/10/09","Ipswich","Derby",1,0,1,0,0,0]
["E1","31/10/09","Middlesbrough","Plymouth",0,1,1,0,0,0]
["E1","31/10/09","Peterboro","Barnsley",1,2,3,1,2,3]
["E1","31/10/09","Preston","Crystal Palace",1,1,2,1,1,2]
["E1","31/10/09","Scunthorpe","Swansea",0,2,2,0,1,1]
["E1","31/10/09","West Brom","Watford",5,0,5,2,0,2]
["E1","2009-01-11","Cardiff","Nott'm Forest",1,1,2,0,0,0]
["E1","2009-02-11","Sheffield United","Newcastle",0,1,1,0,0,0]
["E1","2009-03-11","QPR","Crystal Palace",1,1,2,1,0,1]
["E1","2009-06-11","Derby","Coventry",2,1,3,0,1,1]
["E1","2009-07-11","Blackpool","Scunthorpe",4,1,5,0,0,0]
["E1","2009-07-11","Crystal Palace","Middlesbrough",1,0,1,0,0,0]
["E1","2009-07-11","Leicester","West Brom",1,2,3,0,2,2]
["E1","2009-07-11","Newcastle","Peterboro",3,1,4,2,0,2]
["E1","2009-07-11","Nott'm Forest","Bristol City",1,1,2,0,0,0]
["E1","2009-07-11","Plymouth","Doncaster",2,1,3,1,1,2]
["E1","2009-07-11","Reading","Ipswich",1,1,2,0,1,1]
["E1","2009-07-11","Sheffield Weds","QPR",1,2,3,1,1,2]
["E1","2009-07-11","Swansea","Cardiff",3,2,5,2,2,4]
["E1","2009-07-11","Watford","Preston",2,0,2,2,0,2]
["E1","2009-09-11","Barnsley","Sheffield United",2,2,4,0,0,0]
["E1","20/11/09","Swansea","Derby",1,0,{"$f":"E195+F195","v":1},0,0,{"$f":"H195+I195","v":0}]
["E1","21/11/09","Barnsley","Cardiff",1,0,1,0,0,0]
["E1","21/11/09","Coventry","Crystal Palace",1,1,2,0,1,1]
["E1","21/11/09","Doncaster","QPR",2,0,2,0,0,0]
["E1","21/11/09","Ipswich","Sheffield Weds",0,0,0,0,0,0]
["E1","21/11/09","Leicester","Plymouth",1,0,1,0,0,0]
["E1","21/11/09","Middlesbrough","Nott'm Forest",1,1,2,1,0,1]
["E1","21/11/09","Reading","Blackpool",2,1,3,0,0,0]
["E1","21/11/09","Sheffield United","Peterboro",1,0,1,1,0,1]
["E1","21/11/09","Watford","Scunthorpe",3,0,3,2,0,2]
["E1","21/11/09","West Brom","Bristol City",4,1,5,2,0,2]
["E1","23/11/09","Preston","Newcastle",0,1,1,0,1,1]
["E1","28/11/09","Bristol City","Sheffield United",2,3,5,0,2,2]
["E1","28/11/09","Crystal Palace","Watford",3,0,3,2,0,2]
["E1","28/11/09","Derby","Reading",2,1,3,0,0,0]
["E1","28/11/09","Newcastle","Swansea",3,0,3,3,0,3]
["E1","28/11/09","Nott'm Forest","Doncaster",4,1,5,1,0,1]
["E1","28/11/09","Peterboro","Middlesbrough",2,2,4,0,1,1]
["E1","28/11/09","QPR","Coventry",2,2,4,1,1,2]
["E1","28/11/09","Scunthorpe","Leicester",1,1,2,0,1,1]
["E1","28/11/09","Sheffield Weds","West Brom",0,4,4,0,3,3]
["E1","29/11/09","Cardiff","Ipswich",1,2,3,1,0,1]
["E1","30/11/09","Blackpool","Preston",1,1,2,1,1,2]
["E1","2009-05-12","Blackpool","Barnsley",1,2,3,0,0,0]
["E1","2009-05-12","Bristol City","Ipswich",0,0,0,0,0,0]
["E1","2009-05-12","Cardiff","Preston",1,0,1,0,0,0]
["E1","2009-05-12","Crystal Palace","Doncaster",0,3,3,0,1,1]
["E1","2009-05-12","Derby","West Brom",2,2,4,1,0,1]
["E1","2009-05-12","Newcastle","Watford",2,0,2,1,0,1]
["E1","2009-05-12","Nott'm Forest","Leicester",5,1,6,2,0,2]
["E1","2009-05-12","Peterboro","Swansea",2,2,4,0,0,0]
["E1","2009-05-12","Plymouth","Sheffield United",0,1,1,0,0,0]
["E1","2009-05-12","QPR","Middlesbrough",1,5,6,0,1,1]
["E1","2009-05-12","Sheffield Weds","Reading",0,2,2,0,0,0]
["E1","2009-06-12","Scunthorpe","Coventry",1,0,1,1,0,1]
["E1","2009-07-12","Watford","QPR",3,1,4,1,1,2]
["E1","2009-08-12","Doncaster","Sheffield Weds",1,0,1,0,0,0]
["E1","2009-08-12","Ipswich","Peterboro",0,0,0,0,0,0]
["E1","2009-08-12","Leicester","Bristol City",1,3,4,0,2,2]
["E1","2009-08-12","Middlesbrough","Blackpool",0,3,3,0,2,2]
["E1","2009-08-12","Preston","Derby",0,0,0,0,0,0]
["E1","2009-08-12","Reading","Crystal Palace",2,4,6,1,3,4]
["E1","2009-08-12","Sheffield United","Nott'm Forest",0,0,0,0,0,0]
["E1","2009-08-12","Swansea","Plymouth",1,0,1,0,0,0]
["E1","2009-08-12","West Brom","Cardiff",0,2,2,0,1,1]
["E1","2009-09-12","Barnsley","Scunthorpe",1,1,2,0,0,0]
["E1","2009-09-12","Coventry","Newcastle",0,2,2,0,1,1]
["E1","2009-12-12","Barnsley","Newcastle",2,2,4,0,1,1]
["E1","2009-12-12","Coventry","Peterboro",3,2,5,2,0,2]
["E1","2009-12-12","Doncaster","Bristol City",1,0,1,1,0,1]
["E1","2009-12-12","Ipswich","Blackpool",3,1,4,2,0,2]
["E1","2009-12-12","Leicester","Sheffield Weds",3,0,3,2,0,2]
["E1","2009-12-12","Preston","Plymouth",2,0,2,2,0,2]
["E1","2009-12-12","Reading","Scunthorpe",1,1,2,1,0,1]
["E1","2009-12-12","Sheffield United","Crystal Palace",2,0,2,1,0,1]
["E1","2009-12-12","Swansea","Nott'm Forest",0,1,1,0,1,1]
["E1","2009-12-12","Watford","Derby",0,1,1,0,0,0]
["E1","13/12/09","Middlesbrough","Cardiff",0,1,1,0,0,0]
["E1","14/12/09","West Brom","QPR",2,2,4,0,0,0]
["E1","19/12/09","Bristol City","Reading",1,1,2,1,0,1]
["E1","19/12/09","Crystal Palace","Barnsley",1,1,2,0,1,1]
["E1","19/12/09","Derby","Doncaster",0,2,2,0,1,1]
["E1","19/12/09","Nott'm Forest","Preston",3,0,3,2,0,2]
["E1","19/12/09","Peterboro","Watford",2,1,3,1,0,1]
["E1","19/12/09","Plymouth","Coventry",0,1,{"$f":"E259+F259","v":1},0,0,{"$f":"H259+I259","v":0}]
["E1","19/12/09","QPR","Sheffield United",1,1,2,1,1,2]
["E1","19/12/09","Sheffield Weds","Swansea",0,2,2,0,2,2]
["E1","20/12/09","Newcastle","Middlesbrough",2,0,2,1,0,1]
["E1","26/12/09","Cardiff","Plymouth",0,1,1,0,0,0]
["E1","26/12/09","Coventry","Doncaster",1,0,1,0,0,0]
["E1","26/12/09","Crystal Palace","Ipswich",3,1,4,1,1,2]
["E1","26/12/09","Derby","Blackpool",0,2,2,0,1,1]
["E1","26/12/09","Leicester","Sheffield United",2,1,3,2,0,2]
["E1","26/12/09","Middlesbrough","Scunthorpe",3,0,3,2,0,2]
["E1","26/12/09","QPR","Bristol City",2,1,3,2,0,2]
["E1","26/12/09","Reading","Swansea",1,1,2,1,1,2]
["E1","26/12/09","Sheffield Weds","Newcastle",2,2,4,1,2,3]
["E1","26/12/09","Watford","Nott'm Forest",0,0,0,0,0,0]
["E1","26/12/09","West Brom","Peterboro",2,0,2,0,0,0]
["E1","28/12/09","Barnsley","Middlesbrough",2,1,3,0,1,1]
["E1","28/12/09","Bristol City","Watford",2,2,4,2,1,3]
["E1","28/12/09","Ipswich","QPR",3,0,3,1,0,1]
["E1","28/12/09","Newcastle","Derby",0,0,0,0,0,0]
["E1","28/12/09","Nott'm Forest","Coventry",2,0,2,1,0,1]
["E1","28/12/09","Peterboro","Cardiff",4,4,8,0,4,4]
["E1","28/12/09","Plymouth","Reading",4,1,5,1,0,1]
["E1","28/12/09","Scunthorpe","West Brom",1,3,4,0,1,1]
["E1","28/12/09","Sheffield United","Preston",1,0,1,0,0,0]
["E1","28/12/09","Swansea","Crystal Palace",0,0,0,0,0,0]
["E1","2010-08-01","West Brom","Nott'm Forest",1,3,4,0,1,1]
["E1","2010-09-01","Cardiff","Blackpool",1,1,2,1,0,1]
["E1","2010-09-01","Coventry","Barnsley",3,1,4,2,0,2]
["E1","2010-09-01","Derby","Scunthorpe",1,4,5,0,2,2]
["E1","2010-10-01","Leicester","Ipswich",1,1,2,1,1,2]
["E1","16/01/10","Barnsley","Sheffield Weds",1,2,3,1,2,3]
["E1","16/01/10","Blackpool","QPR",2,2,4,1,0,1]
["E1","16/01/10","Bristol City","Preston",4,2,6,2,1,3]
["E1","16/01/10","Doncaster","Watford",2,1,3,0,0,0]
["E1","16/01/10","Ipswich","Coventry",3,2,5,1,1,2]
["E1","16/01/10","Nott'm Forest","Reading",2,1,3,2,0,2]
["E1","16/01/10","Peterboro","Derby",0,3,3,0,1,1]
["E1","16/01/10","Plymouth","Crystal Palace",0,1,1,0,1,1]
["E1","16/01/10","Scunthorpe","Cardiff",1,1,2,1,0,1]
["E1","16/01/10","Sheffield United","Middlesbrough",1,0,1,0,0,0]
["E1","16/01/10","Swansea","Leicester",1,0,1,1,0,1]
["E1","18/01/10","Newcastle","West Brom",2,2,4,1,1,2]
["E1","19/01/10","Blackpool","Sheffield Weds",1,2,3,0,0,0]
["E1","23/01/10","Blackpool","Watford",3,2,5,1,1,2]
["E1","23/01/10","Middlesbrough","Swansea",1,1,2,0,0,0]
["E1","23/01/10","Sheffield Weds","Peterboro",2,1,3,1,0,1]
["E1","26/01/10","Barnsley","Leicester",1,0,1,0,0,0]
["E1","26/01/10","Bristol City","Cardiff",0,6,6,0,4,4]
["E1","26/01/10","Doncaster","Middlesbrough",1,4,5,0,2,2]
["E1","26/01/10","Ipswich","West Brom",1,1,2,0,0,0]
["E1","26/01/10","Nott'm Forest","QPR",5,0,5,3,0,3]
["E1","26/01/10","Peterboro","Preston",0,1,1,0,1,1]
["E1","26/01/10","Plymouth","Derby",1,0,1,0,0,0]
["E1","26/01/10","Sheffield United","Reading",3,0,3,2,0,2]
["E1","26/01/10","Swansea","Coventry",0,0,0,0,0,0]
["E1","27/01/10","Newcastle","Crystal Palace",2,0,2,1,0,1]
["E1","27/01/10","Scunthorpe","Sheffield Weds",2,0,2,1,0,1]
["E1","30/01/10","Cardiff","Doncaster",2,1,3,1,0,1]
["E1","30/01/10","Coventry","Blackpool",1,1,2,0,0,0]
["E1","30/01/10","Crystal Palace","Peterboro",2,0,2,1,0,1]
["E1","30/01/10","Derby","Nott'm Forest",1,0,1,0,0,0]
["E1","30/01/10","Leicester","Newcastle",0,0,0,0,0,0]
["E1","30/01/10","Middlesbrough","Bristol City",0,0,0,0,0,0]
["E1","30/01/10","Preston","Ipswich",2,0,2,0,0,0]
["E1","30/01/10","QPR","Scunthorpe",0,1,{"$f":"E323+F323","v":1},0,0,{"$f":"H323+I323","v":0}]
["E1","30/01/10","Reading","Barnsley",1,0,1,1,0,1]
["E1","30/01/10","Sheffield Weds","Plymouth",2,1,3,2,1,3]
["E1","30/01/10","West Brom","Sheffield United",3,1,4,2,0,2]
["E1","2010-02-02","Preston","Barnsley",1,4,5,1,2,3]
["E1","2010-02-02","Watford","Sheffield United",3,0,3,1,0,1]
["E1","2010-03-02","Blackpool","West Brom",2,3,5,1,2,3]
["E1","2010-05-02","Newcastle","Cardiff",5,1,6,3,0,3]
["E1","2010-06-02","Barnsley","Watford",1,0,1,0,0,0]
["E1","2010-06-02","Blackpool","Leicester",1,2,3,0,1,1]
["E1","2010-06-02","Bristol City","Coventry",1,1,2,0,0,0]
["E1","2010-06-02","Doncaster","Reading",1,2,3,0,1,1]
["E1","2010-06-02","Ipswich","Middlesbrough",1,1,2,1,0,1]
["E1","2010-06-02","Nott'm Forest","Sheffield Weds",2,1,3,1,0,1]
["E1","2010-06-02","Peterboro","QPR",1,0,1,1,0,1]
["E1","2010-06-02","Plymouth","West Brom",0,1,1,0,0,0]
["E1","2010-06-02","Scunthorpe","Crystal Palace",1,2,3,0,0,0]
["E1","2010-06-02","Sheffield United","Derby",1,1,2,0,1,1]
["E1","2010-06-02","Swansea","Preston",2,0,2,1,0,1]
["E1","2010-09-02","Cardiff","Peterboro",2,0,2,1,0,1]
["E1","2010-09-02","Coventry","Nott'm Forest",1,0,1,1,0,1]
["E1","2010-09-02","Crystal Palace","Swansea",0,1,1,0,1,1]
["E1","2010-09-02","Derby","Newcastle",3,0,3,1,0,1]
["E1","2010-09-02","Leicester","Doncaster",0,0,0,0,0,0]
["E1","2010-09-02","Middlesbrough","Barnsley",2,1,3,2,0,2]
["E1","2010-09-02","Preston","Sheffield United",2,1,3,1,0,1]
["E1","2010-09-02","QPR","Ipswich",1,2,3,0,2,2]
["E1","2010-09-02","Reading","Plymouth",2,1,3,0,0,0]
["E1","2010-09-02","Sheffield Weds","Blackpool",2,0,2,1,0,1]
["E1","2010-09-02","Watford","Bristol City",2,0,2,2,0,2]
["E1","2010-09-02","West Brom","Scunthorpe",2,0,2,1,0,1]
["E1","13/02/10","Barnsley","Plymouth",1,3,4,1,0,1]
["E1","13/02/10","Coventry","QPR",1,0,1,1,0,1]
["E1","13/02/10","Doncaster","Nott'm Forest",1,0,1,1,0,1]
["E1","13/02/10","Leicester","Scunthorpe",5,1,6,4,0,4]
["E1","13/02/10","Middlesbrough","Peterboro",1,0,1,1,0,1]
["E1","13/02/10","Preston","Blackpool",0,0,0,0,0,0]
["E1","13/02/10","Sheffield United","Bristol City",2,0,2,0,0,0]
["E1","13/02/10","Swansea","Newcastle",1,1,2,0,0,0]
["E1","16/02/10","Blackpool","Middlesbrough",2,0,2,1,0,1]
["E1","16/02/10","Bristol City","Leicester",1,1,2,0,0,0]
["E1","16/02/10","Cardiff","West Brom",1,1,2,1,1,2]
["E1","16/02/10","Derby","Preston",5,3,8,1,1,2]
["E1","16/02/10","Nott'm Forest","Sheffield United",1,0,1,1,0,1]
["E1","16/02/10","Peterboro","Ipswich",3,1,4,0,1,1]
["E1","16/02/10","Plymouth","Swansea",1,1,2,0,0,0]
["E1","16/02/10","Scunthorpe","Barnsley",2,1,3,0,0,0]
["E1","16/02/10","Sheffield Weds","Doncaster",0,2,2,0,1,1]
["E1","17/02/10","Crystal Palace","Reading",1,3,4,0,1,1]
["E1","17/02/10","Newcastle","Coventry",4,1,5,1,1,2]
["E1","20/02/10","Blackpool","Reading",2,0,2,1,0,1]
["E1","20/02/10","Cardiff","Barnsley",0,2,2,0,2,2]
["E1","20/02/10","Crystal Palace","Coventry",0,1,1,0,0,0]
["E1","20/02/10","Derby","Swansea",0,1,1,0,0,0]
["E1","20/02/10","Newcastle","Preston",3,0,3,1,0,1]
["E1","20/02/10","Nott'm Forest","Middlesbrough",1,0,1,0,0,0]
["E1","20/02/10","Plymouth","Leicester",1,1,2,1,1,2]
["E1","20/02/10","QPR","Doncaster",2,1,3,1,0,1]
["E1","20/02/10","Scunthorpe","Watford",2,2,4,1,0,1]
["E1","20/02/10","Sheffield Weds","Ipswich",0,1,1,0,1,1]
["E1","21/02/10","Bristol City","West Brom",2,1,3,0,1,1]
["E1","23/02/10","Doncaster","Leicester",0,1,1,0,1,1]
["E1","23/02/10","Scunthorpe","Ipswich",1,1,2,0,0,0]
["E1","27/02/10","Barnsley","Blackpool",1,0,1,0,0,0]
["E1","27/02/10","Coventry","Scunthorpe",2,1,{"$f":"E387+F387","v":3},0,0,{"$f":"H387+I387","v":0}]
["E1","27/02/10","Doncaster","Crystal Palace",1,1,2,1,0,1]
["E1","27/02/10","Ipswich","Bristol City",0,0,0,0,0,0]
["E1","27/02/10","Leicester","Nott'm Forest",3,0,3,0,0,0]
["E1","27/02/10","Middlesbrough","QPR",2,0,2,2,0,2]
["E1","27/02/10","Preston","Cardiff",3,0,3,1,0,1]
["E1","27/02/10","Reading","Sheffield Weds",5,0,5,2,0,2]
["E1","27/02/10","Sheffield United","Plymouth",4,3,7,2,0,2]
["E1","27/02/10","Swansea","Peterboro",1,0,1,1,0,1]
["E1","27/02/10","Watford","Newcastle",1,2,3,0,1,1]
["E1","27/02/10","West Brom","Derby",3,1,4,0,0,0]
["E1","2010-06-03","Blackpool","Ipswich",1,0,1,0,0,0]
["E1","2010-06-03","Bristol City","Doncaster",2,5,7,2,4,6]
["E1","2010-06-03","Cardiff","Middlesbrough",1,0,1,1,0,1]
["E1","2010-06-03","Crystal Palace","Sheffield United",1,0,1,1,0,1]
["E1","2010-06-03","Derby","Watford",2,0,2,1,0,1]
["E1","2010-06-03","Newcastle","Barnsley",6,1,7,1,0,1]
["E1","2010-06-03","Nott'm Forest","Swansea",1,0,1,0,0,0]
["E1","2010-06-03","Peterboro","Coventry",0,1,1,0,1,1]
["E1","2010-06-03","Plymouth","Preston",1,1,2,0,1,1]
["E1","2010-06-03","QPR","West Brom",3,1,4,2,1,3]
["E1","2010-06-03","Sheffield Weds","Leicester",2,0,2,1,0,1]
["E1","2010-09-03","Crystal Palace","Bristol City",0,1,1,0,0,0]
["E1","2010-09-03","Ipswich","Cardiff",2,0,2,1,0,1]
["E1","2010-09-03","Peterboro","Sheffield United",1,0,1,1,0,1]
["E1","2010-09-03","Preston","Doncaster",1,1,2,1,1,2]
["E1","2010-09-03","QPR","Plymouth",2,0,2,1,0,1]
["E1","2010-09-03","Watford","Swansea",0,1,1,0,1,1]
["E1","2010-09-03","West Brom","Sheffield Weds",1,0,1,0,0,0]
["E1","2010-10-03","Reading","Derby",4,1,5,2,1,3]
["E1","13/03/10","Barnsley","Crystal Palace",0,0,0,0,0,0]
["E1","13/03/10","Coventry","Plymouth",1,1,2,0,1,1]
["E1","13/03/10","Doncaster","Derby",2,1,3,1,0,1]
["E1","13/03/10","Ipswich","Scunthorpe",1,0,1,0,0,0]
["E1","13/03/10","Leicester","Cardiff",1,0,1,1,0,1]
["E1","13/03/10","Middlesbrough","Newcastle",2,2,4,1,1,2]
["E1","13/03/10","Preston","Nott'm Forest",3,2,5,3,0,3]
["E1","13/03/10","Reading","Bristol City",2,0,2,2,0,2]
["E1","13/03/10","Sheffield United","QPR",1,1,2,1,0,1]
["E1","13/03/10","Swansea","Sheffield Weds",0,0,0,0,0,0]
["E1","13/03/10","Watford","Peterboro",0,1,1,0,0,0]
["E1","13/03/10","West Brom","Blackpool",3,2,5,1,1,2]
["E1","16/03/10","Barnsley","Nott'm Forest",2,1,3,1,0,1]
["E1","16/03/10","Coventry","Cardiff",1,2,3,1,1,2]
["E1","16/03/10","Crystal Palace","Leicester",0,1,1,0,0,0]
["E1","16/03/10","Derby","Middlesbrough",2,2,4,0,1,1]
["E1","16/03/10","Peterboro","Doncaster",1,2,3,0,0,0]
["E1","16/03/10","Plymouth","Bristol City",3,2,5,2,0,2]
["E1","16/03/10","Preston","Sheffield Weds",2,2,4,1,0,1]
["E1","16/03/10","Reading","QPR",1,0,1,0,0,0]
["E1","16/03/10","Sheffield United","Blackpool",3,0,3,2,0,2]
["E1","16/03/10","Swansea","West Brom",0,2,2,0,0,0]
["E1","16/03/10","Watford","Ipswich",2,1,3,1,0,1]
["E1","17/03/10","Newcastle","Scunthorpe",3,0,3,2,0,2]
["E1","20/03/10","Blackpool","Crystal Palace",2,2,4,0,2,2]
["E1","20/03/10","Bristol City","Newcastle",2,2,4,2,0,2]
["E1","20/03/10","Doncaster","Sheffield United",1,1,2,1,0,1]
["E1","20/03/10","Ipswich","Barnsley",1,0,1,1,0,1]
["E1","20/03/10","Middlesbrough","Reading",1,1,2,0,0,0]
["E1","20/03/10","Nott'm Forest","Peterboro",1,0,1,1,0,1]
["E1","20/03/10","QPR","Swansea",1,1,2,0,0,0]
["E1","20/03/10","Scunthorpe","Plymouth",2,1,3,1,1,2]
["E1","20/03/10","Sheffield Weds","Derby",0,0,0,0,0,0]
["E1","20/03/10","West Brom","Preston",3,2,5,3,2,5]
["E1","21/03/10","Cardiff","Watford",3,1,{"$f":"E451+F451","v":4},1,0,{"$f":"H451+I451","v":1}]
["E1","21/03/10","Leicester","Coventry",2,2,4,2,0,2]
["E1","23/03/10","Blackpool","Swansea",5,1,6,2,0,2]
["E1","23/03/10","Bristol City","Barnsley",5,3,8,2,2,4]
["E1","23/03/10","Doncaster","Newcastle",0,1,1,0,0,0]
["E1","23/03/10","Ipswich","Plymouth",0,2,2,0,1,1]
["E1","23/03/10","Middlesbrough","Preston",2,0,2,1,0,1]
["E1","23/03/10","Nott'm Forest","Crystal Palace",2,0,2,1,0,1]
["E1","23/03/10","QPR","Derby",1,1,2,1,0,1]
["E1","23/03/10","Scunthorpe","Peterboro",4,0,4,3,0,3]
["E1","24/03/10","Cardiff","Sheffield United",1,1,2,1,0,1]
["E1","24/03/10","Leicester","Reading",1,2,3,1,1,2]
["E1","24/03/10","Sheffield Weds","Watford",2,1,3,0,0,0]
["E1","24/03/10","West Brom","Coventry",1,0,1,1,0,1]
["E1","27/03/10","Barnsley","Doncaster",0,1,1,0,1,1]
["E1","27/03/10","Coventry","Sheffield Weds",1,1,2,0,0,0]
["E1","27/03/10","Crystal Palace","Cardiff",1,2,3,0,1,1]
["E1","27/03/10","Derby","Leicester",1,0,1,1,0,1]
["E1","27/03/10","Peterboro","Bristol City",0,1,1,0,0,0]
["E1","27/03/10","Plymouth","Blackpool",0,2,2,0,0,0]
["E1","27/03/10","Preston","QPR",2,2,4,1,0,1]
["E1","27/03/10","Reading","West Brom",1,1,2,1,0,1]
["E1","27/03/10","Swansea","Ipswich",0,0,0,0,0,0]
["E1","27/03/10","Watford","Middlesbrough",1,1,2,1,0,1]
["E1","28/03/10","Sheffield United","Scunthorpe",0,1,1,0,1,1]
["E1","29/03/10","Newcastle","Nott'm Forest",2,0,2,0,0,0]
["E1","30/03/10","Cardiff","Leicester",2,1,3,2,0,2]
["E1","30/03/10","Plymouth","Barnsley",0,0,0,0,0,0]
["E1","30/03/10","Watford","Crystal Palace",1,3,4,0,1,1]
["E1","2010-02-04","Scunthorpe","Blackpool",2,4,6,0,1,1]
["E1","2010-02-04","West Brom","Leicester",3,0,3,2,0,2]
["E1","2010-03-04","Bristol City","Nott'm Forest",1,1,2,1,1,2]
["E1","2010-03-04","Cardiff","Swansea",2,1,3,1,1,2]
["E1","2010-03-04","Coventry","Derby",0,1,1,0,1,1]
["E1","2010-03-04","Doncaster","Plymouth",1,2,3,0,0,0]
["E1","2010-03-04","Ipswich","Reading",2,1,3,2,0,2]
["E1","2010-03-04","Middlesbrough","Crystal Palace",1,1,2,1,1,2]
["E1","2010-03-04","Peterboro","Newcastle",2,3,5,1,1,2]
["E1","2010-03-04","Preston","Watford",1,1,2,0,1,1]
["E1","2010-03-04","QPR","Sheffield Weds",1,1,2,1,0,1]
["E1","2010-03-04","Sheffield United","Barnsley",0,0,0,0,0,0]
["E1","2010-05-04","Barnsley","Peterboro",2,2,4,1,1,2]
["E1","2010-05-04","Blackpool","Doncaster",2,0,2,1,0,1]
["E1","2010-05-04","Crystal Palace","Preston",3,1,4,1,1,2]
["E1","2010-05-04","Derby","Ipswich",1,3,4,0,1,1]
["E1","2010-05-04","Leicester","QPR",4,0,4,2,0,2]
["E1","2010-05-04","Newcastle","Sheffield United",2,1,3,1,1,2]
["E1","2010-05-04","Nott'm Forest","Cardiff",0,0,0,0,0,0]
["E1","2010-05-04","Plymouth","Middlesbrough",0,2,2,0,1,1]
["E1","2010-05-04","Reading","Coventry",3,0,3,3,0,3]
["E1","2010-05-04","Sheffield Weds","Bristol City",0,1,1,0,0,0]
["E1","2010-05-04","Swansea","Scunthorpe",3,0,3,1,0,1]
["E1","2010-05-04","Watford","West Brom",1,1,2,0,0,0]
["E1","2010-10-04","Barnsley","Derby",0,0,0,0,0,0]
["E1","2010-10-04","Bristol City","Swansea",1,0,1,0,0,0]
["E1","2010-10-04","Cardiff","Reading",0,0,0,0,0,0]
["E1","2010-10-04","Crystal Palace","QPR",0,2,2,0,1,1]
["E1","2010-10-04","Doncaster","West Brom",2,3,5,0,2,2]
["E1","2010-10-04","Middlesbrough","Sheffield Weds",1,0,1,1,0,1]
["E1","2010-10-04","Newcastle","Blackpool",4,1,5,2,0,2]
["E1","2010-10-04","Nott'm Forest","Ipswich",3,0,3,0,0,0]
["E1","2010-10-04","Peterboro","Leicester",1,2,3,0,1,1]
["E1","2010-10-04","Preston","Scunthorpe",3,2,5,1,0,1]
["E1","2010-10-04","Sheffield United","Coventry",1,0,1,0,0,0]
["E1","2010-10-04","Watford","Plymouth",1,0,{"$f":"E515+F515","v":1},0,0,{"$f":"H515+I515","v":0}]
["E1","13/04/10","Reading","Newcastle",1,2,3,0,2,2]
["E1","17/04/10","Blackpool","Nott'm Forest",3,1,4,1,0,1]
["E1","17/04/10","Coventry","Preston",1,1,2,1,1,2]
["E1","17/04/10","Derby","Crystal Palace",1,1,2,1,0,1]
["E1","17/04/10","Ipswich","Doncaster",1,1,2,0,0,0]
["E1","17/04/10","Leicester","Watford",4,1,5,2,0,2]
["E1","17/04/10","QPR","Cardiff",0,1,1,0,0,0]
["E1","17/04/10","Reading","Peterboro",6,0,6,4,0,4]
["E1","17/04/10","Scunthorpe","Bristol City",3,0,3,1,0,1]
["E1","17/04/10","Swansea","Barnsley",3,1,4,2,1,3]
["E1","17/04/10","West Brom","Middlesbrough",2,0,2,1,0,1]
["E1","18/04/10","Sheffield Weds","Sheffield United",1,1,2,1,0,1]
["E1","19/04/10","Plymouth","Newcastle",0,2,2,0,2,2]
["E1","20/04/10","QPR","Watford",1,0,1,1,0,1]
["E1","20/04/10","Scunthorpe","Reading",2,2,4,0,0,0]
["E1","24/04/10","Barnsley","QPR",0,1,1,0,1,1]
["E1","24/04/10","Bristol City","Derby",2,1,3,1,0,1]
["E1","24/04/10","Cardiff","Sheffield Weds",3,2,5,1,1,2]
["E1","24/04/10","Doncaster","Scunthorpe",4,3,7,2,1,3]
["E1","24/04/10","Middlesbrough","Coventry",1,1,2,0,0,0]
["E1","24/04/10","Newcastle","Ipswich",2,2,4,1,1,2]
["E1","24/04/10","Nott'm Forest","Plymouth",3,0,3,2,0,2]
["E1","24/04/10","Peterboro","Blackpool",0,1,1,0,1,1]
["E1","24/04/10","Preston","Leicester",0,1,1,0,0,0]
["E1","24/04/10","Sheffield United","Swansea",2,0,2,0,0,0]
["E1","24/04/10","Watford","Reading",3,0,3,1,0,1]
["E1","26/04/10","Crystal Palace","West Brom",1,1,2,1,1,2]
["E1","2010-02-05","Blackpool","Bristol City",1,1,2,0,1,1]
["E1","2010-02-05","Coventry","Watford",0,4,4,0,2,2]
["E1","2010-02-05","Derby","Cardiff",2,0,2,0,0,0]
["E1","2010-02-05","Ipswich","Sheffield United",0,3,3,0,1,1]
["E1","2010-02-05","Leicester","Middlesbrough",2,0,2,1,0,1]
["E1","2010-02-05","Plymouth","Peterboro",1,2,3,1,0,1]
["E1","2010-02-05","QPR","Newcastle",0,1,1,0,0,0]
["E1","2010-02-05","Reading","Preston",4,1,5,2,0,2]
["E1","2010-02-05","Scunthorpe","Nott'm Forest",2,2,4,0,2,2]
["E1","2010-02-05","Sheffield Weds","Crystal Palace",2,2,4,1,1,2]
["E1","2010-02-05","Swansea","Doncaster",0,0,0,0,0,0]
["E1","2010-02-05","West Brom","Barnsley",1,1,2,0,0,0]

{"sheet":"Nemacka2","index":1,"n_rows":600,"n_cols":93,"rows_kept":600,"cut":false,"hidden":false,"merged":[[18,38,23,38],[24,38,29,38],[1,49,1,54],[0,48,2,48],[2,37,2,46],[0,14,0,32],[0,56,2,56],[1,12,1,19],[1,20,1,27],[1,28,1,35]]}
[null,null,null,null,null,null,null,null,null,null,null,null,null,null,"TABELA POSLEDNJIH 6 UTAKMICA ",null,null,null,null,null,null,null,null,null,null,null,null,null,null,null,null,null,null,null,null,null,null,null,null,null,null,null,null,null,null,null,null,null,"INDEX",null,null,null,null,null,null,null,"INDEX",null,null,null,null,null,null,null,null,1,"X",2,"0-2","3+","Tim1 2+","GG","2+I","3+I"]
[null,null,null,null,null,null,null,null,null,null,null,null,"UKUPNO",null,null,null,null,null,null,null,"KOD KUCE",null,null,null,null,null,null,null,"U GOSTIMA",null,null,null,null,null,null,null,null,null,null,null,null,null,null,null,null,null,null,null,null,"ANALIZA",null,null,null,null,null,null,null,null,null,null,null,null,null,null,-40,{"$f":"SUMPRODUCT(($BE$3:$BE$1000=BM2)*($BF$3:$BF$1000=1))","v":0},{"$f":"SUMPRODUCT(($BE$3:$BE$1000=BM2)*($BF$3:$BF$1000=\"X\"))","v":0},{"$f":"SUMPRODUCT(($BE$3:$BE$1000=BM2)*($BF$3:$BF$1000=2))","v":0},{"$f":"SUMPRODUCT(($BE$3:$BE$1000=BM2)*($BG$3:$BG$1000=\"0-2\"))","v":0},{"$f":"SUMPRODUCT(($BE$3:$BE$1000=BM2)*($BG$3:$BG$1000=\"3+\"))","v":0},{"$f":"SUMPRODUCT(($BE$3:$BE$1000=BM2)*($BH$3:$BH$1000=1))","v":0},{"$f":"SUMPRODUCT(($BE$3:$BE$1000=BM2)*($BI$3:$BI$1000=1))","v":0},{"$f":"SUMPRODUCT(($BE$3:$BE$1000=BM2)*($BJ$3:$BJ$1000=1))","v":0},{"$f":"SUMPRODUCT(($BE$3:$BE$1000=BM2)*($BK$3:$BK$1000=1))","v":0}]
["E1","2009-07-08","Middlesbrough","Sheffield United",0,0,{"$f":"E3+F3","v":0},0,0,{"$f":"H3+I3","v":0},null,null,"P","P","N","I","F","A","GD","Pt","P","P","N","I","F","A","GD","Pt","P","P","N","I ","F","A","GD","Pt",null,"AKTUELNO KOLO",null,null,null,null,null,null,null,null,null,null,null,"1X2","O/U","D2+","GG ","2+I","3+I",null,null,null,null,null,null,null,null,null,-39,0,0,0,0,0,0,0,{"$f":"SUMPRODUCT(($BE$3:$BE$1000=BM3)*($BJ$3:$BJ$1000=1))","v":0},{"$f":"SUMPRODUCT(($BE$3:$BE$1000=BM3)*($BK$3:$BK$1000=1))","v":0}]
["E1","2009-08-08","Cardiff","Scunthorpe",4,0,4,3,0,3,null,"Middlesbrough",{"$f":"U4+AC4","v":1},{"$f":"V4+AD4","v":1},0,0,3,1,2,3,{"$f":"COUNTIF($AN$19:$AN$30,L4)","v":0},{"$f":"SUMPRODUCT(($AN$19:$AN$30=L4)*($AP$19:$AP$30>$AQ$19:$AQ$30))","v":0},{"$f":"SUMPRODUCT(($AN$19:$AN$30=L4)*($AP$19:$AP$30=$AQ$19:$AQ$30))","v":0},{"$f":"SUMPRODUCT(($AN$19:$AN$30=L4)*($AP$19:$AP$30<$AQ$19:$AQ$30))","v":0},{"$f":"SUMIF($AN$19:$AN$30,L4,$AP$19:$AP$30)","v":0},{"$f":"SUMIF($AN$19:$AN$30,L4,$AQ$19:$AQ$30)","v":0},{"$f":"Y4-Z4","v":0},{"$f":"V4*3+W4*1","v":0},{"$f":"COUNTIF($AO$19:$AO$30,L4)","v":1},{"$f":"SUMPRODUCT(($AO$19:$AO$30=L4)*($AP$19:$AP$30<$AQ$19:$AQ$30))","v":1},{"$f":"SUMPRODUCT(($AO$19:$AO$30=L4)*($AP$19:$AP$30=$AQ$19:$AQ$30))","v":0},{"$f":"SUMPRODUCT(($AO$19:$AO$30=L4)*($AP$19:$AP$30>$AQ$19:$AQ$30))","v":0},{"$f":"SUMIF($AO$19:$AO$30,L4,$AQ$19:$AQ$30)","v":3},{"$f":"SUMIF($AO$19:$AO$30,L4,$AP$19:$AP$30)","v":1},{"$f":"AG4-AH4","v":2},{"$f":"AD4*3+AE4*1","v":3},null,"E1","18/09/09","Sheffield United","Sheffield Weds",3,2,{"$f":"AP4+AQ4","v":5},3,0,{"$f":"AS4+AT4","v":3},null,{"$f":"VLOOKUP(AN4,$L$4:$AJ$27,16,FALSE)-VLOOKUP(AO4,$L$4:$AJ$27,24,FALSE)","v":1},{"$f":"IF(AP4>AQ4,1,IF(AP4=AQ4,\"X\",IF(AP4<AQ4,2,\" \")))","v":1},{"$f":"IF(AR4>2,\"3+\",\"0-2\")","v":"3+"},{"$f":"IF(AP4>1,1,0)","v":1},{"$f":"IF(AND(AP4>0,AQ4>0),1,0)","v":1},{"$f":"IF(AU4>1,1,0)","v":1},{"$f":"IF(AU4>2,1,0)","v":1},null,1,1,"3+",1,1,1,1,null,-38,0,0,0,0,0,0,0,0,0]
["E1","2009-08-08","Crystal Palace","Plymouth",1,1,2,0,1,1,null,"Cardiff",{"$f":"U5+AC5","v":0},0,0,0,0,0,0,0,{"$f":"COUNTIF($AN$19:$AN$30,L5)","v":0},{"$f":"SUMPRODUCT(($AN$19:$AN$30=L5)*($AP$19:$AP$30>$AQ$19:$AQ$30))","v":0},{"$f":"SUMPRODUCT(($AN$19:$AN$30=L5)*($AP$19:$AP$30=$AQ$19:$AQ$30))","v":0},{"$f":"SUMPRODUCT(($AN$19:$AN$30=L5)*($AP$19:$AP$30<$AQ$19:$AQ$30))","v":0},{"$f":"SUMIF($AN$19:$AN$30,L5,$AP$19:$AP$30)","v":0},{"$f":"SUMIF($AN$19:$AN$30,L5,$AQ$19:$AQ$30)","v":0},{"$f":"Y5-Z5","v":0},{"$f":"V5*3+W5*1","v":0},{"$f":"COUNTIF($AO$19:$AO$30,L5)","v":0},{"$f":"SUMPRODUCT(($AO$19:$AO$30=L5)*($AP$19:$AP$30<$AQ$19:$AQ$30))","v":0},{"$f":"SUMPRODUCT(($AO$19:$AO$30=L5)*($AP$19:$AP$30=$AQ$19:$AQ$30))","v":0},{"$f":"SUMPRODUCT(($AO$19:$AO$30=L5)*($AP$19:$AP$30>$AQ$19:$AQ$30))","v":0},{"$f":"SUMIF($AO$19:$AO$30,L5,$AQ$19:$AQ$30)","v":0},{"$f":"SUMIF($AO$19:$AO$30,L5,$AP$19:$AP$30)","v":0},{"$f":"AG5-AH5","v":0},{"$f":"AD5*3+AE5*1","v":0},null,"E1","19/09/09","Barnsley","Swansea",0,0,0,0,0,0,null,{"$f":"VLOOKUP(AN5,$L$4:$AJ$27,16,FALSE)-VLOOKUP(AO5,$L$4:$AJ$27,24,FALSE)","v":0},{"$f":"IF(AP5>AQ5,1,IF(AP5=AQ5,\"X\",IF(AP5<AQ5,2,\" \")))","v":"X"},{"$f":"IF(AR5>2,\"3+\",\"0-2\")","v":"0-2"},{"$f":"IF(AP5>1,1,0)","v":0},{"$f":"IF(AND(AP5>0,AQ5>0),1,0)","v":0},{"$f":"IF(AU5>1,1,0)","v":0},{"$f":"IF(AU5>2,1,0)","v":0},null,null,null,null,null,null,null,null,null,-37,0,0,0,0,0,0,0,0,0]
["E1","2009-08-08","Derby","Peterboro",2,1,3,1,0,1,null,"Crystal Palace",0,0,0,0,0,0,0,0,0,0,0,0,0,0,0,0,0,0,0,0,0,0,0,0,null,"E1","19/09/09","Bristol City","Scunthorpe",1,1,2,0,0,0,null,4,"X","0-2",0,1,0,0,null,null,null,null,null,null,null,null,null,-36,0,0,0,0,0,0,0,0,0]
["E1","2009-08-08","Leicester","Swansea",2,1,3,0,1,1,null,"Derby",1,0,0,1,0,1,-1,0,1,0,0,1,0,1,-1,0,0,0,0,0,0,0,0,0,null,"E1","19/09/09","Cardiff","QPR",0,2,2,0,2,2,null,0,2,"0-2",0,0,1,0,null,null,null,null,null,null,null,null,null,-35,0,0,0,0,0,0,0,0,0]
["E1","2009-08-08","Preston","Bristol City",2,2,4,0,0,0,null,"Leicester",1,0,1,0,1,1,0,1,0,0,0,0,0,0,0,0,1,0,1,0,1,1,0,1,null,"E1","19/09/09","Crystal Palace","Derby",1,0,1,0,0,0,null,0,1,"0-2",0,0,0,0,null,null,null,null,null,null,null,null,null,-34,0,0,0,0,0,0,0,0,0]
["E1","2009-08-08","QPR","Blackpool",1,1,2,0,1,1,null,"Preston",0,0,0,0,0,0,0,0,0,0,0,0,0,0,0,0,0,0,0,0,0,0,0,0,null,"E1","19/09/09","Doncaster","Ipswich",3,3,6,1,0,1,null,0,"X","3+",1,1,0,0,null,null,null,null,null,null,null,null,null,-33,0,0,0,0,0,0,0,0,0]
["E1","2009-08-08","Reading","Nott'm Forest",0,0,0,0,0,0,null,"QPR",0,0,0,0,0,0,0,0,0,0,0,0,0,0,0,0,0,0,0,0,0,0,0,0,null,"E1","19/09/09","Middlesbrough","West Brom",0,5,5,0,3,3,null,0,2,"3+",0,0,1,1,null,null,null,null,null,null,null,null,null,-32,0,0,0,0,0,0,0,0,0]
["E1","2009-08-08","Sheffield Weds","Barnsley",2,2,4,2,0,2,null,"Reading",1,0,0,1,1,3,-2,0,1,0,0,1,1,3,-2,0,0,0,0,0,0,0,0,0,null,"E1","19/09/09","Newcastle","Plymouth",3,1,4,1,0,1,null,1,1,"3+",1,1,0,0,null,null,null,null,null,null,null,null,null,-31,0,0,0,0,0,0,0,0,0]
["E1","2009-08-08","Watford","Doncaster",1,1,2,1,1,2,null,"Sheffield Weds",6,2,2,2,10,7,3,8,3,1,1,1,6,4,2,4,3,1,1,1,4,3,1,4,null,"E1","19/09/09","Nott'm Forest","Blackpool",0,1,1,0,1,1,null,0,2,"0-2",0,0,0,0,null,null,null,null,null,null,null,null,null,-30,0,0,0,0,0,0,0,0,0]
["E1","2009-08-08","West Brom","Newcastle",1,1,2,1,0,1,null,"Watford",1,0,0,1,0,2,-2,0,0,0,0,0,0,0,0,0,1,0,0,1,0,2,-2,0,null,"E1","19/09/09","Peterboro","Reading",3,2,5,0,2,2,null,0,1,"3+",1,1,1,0,null,null,null,null,null,null,null,null,null,-29,0,0,0,0,0,0,0,0,0]
["E1","2009-09-08","Coventry","Ipswich",2,1,3,2,1,3,null,"West Brom",1,0,1,0,2,2,0,1,0,0,0,0,0,0,0,0,1,0,1,0,2,2,0,1,null,"E1","19/09/09","Preston","Coventry",3,2,5,0,1,1,null,0,1,"3+",1,1,0,0,null,null,null,null,null,null,null,null,null,-28,0,0,0,0,0,0,0,0,0]
["E1","15/08/09","Barnsley","Coventry",0,2,2,0,1,1,null,"Coventry",1,1,0,0,3,2,1,3,1,1,0,0,3,2,1,3,0,0,0,0,0,0,0,0,null,"E1","19/09/09","Watford","Leicester",3,3,6,0,2,2,null,0,"X","3+",1,1,1,0,null,null,null,null,null,null,null,null,null,-27,0,0,0,0,0,0,0,0,0]
["E1","15/08/09","Blackpool","Cardiff",1,1,2,1,1,2,null,"Sheffield United",6,3,2,1,11,7,4,11,3,1,2,0,5,3,2,5,3,2,0,1,6,4,2,6,null,null,null,null,null,null,null,null,null,null,null,null,null,null,null,null,null,null,null,null,null,null,null,null,null,null,null,null,-26,0,0,0,0,0,0,0,0,0]
["E1","15/08/09","Bristol City","Crystal Palace",1,0,1,0,0,0,null,"Scunthorpe",1,0,0,1,0,4,-4,0,0,0,0,0,0,0,0,0,1,0,0,1,0,4,-4,0,null,null,null,null,null,null,null,null,null,null,null,null,null,null,null,null,null,null,null,null,null,null,null,null,null,null,null,null,-25,0,0,0,0,0,0,0,0,0]
["E1","15/08/09","Doncaster","Preston",1,1,2,0,1,1,null,"Plymouth",1,0,0,1,1,3,-2,0,1,0,0,1,1,3,-2,0,0,0,0,0,0,0,0,0,null,null,null,null,null,null,null,null,null,null,null,null,null,null,null,null,null,null,null,null,null,null,null,null,null,null,null,null,-24,0,0,0,0,0,0,0,0,0]
["E1","15/08/09","Ipswich","Leicester",0,0,0,0,0,0,null,"Peterboro",1,0,1,0,1,1,0,1,1,0,1,0,1,1,0,1,0,0,0,0,0,0,0,0,null,null,"DOMACIN",{"$f":"BX19","v":"Sheffield United"},{"$f":"BY19","v":"West Brom"},2,2,null,0,0,null,null,null,null,null,null,null,null,null,null,null,null,null,null,null,null,null,null,-23,0,0,0,0,0,0,0,0,0,null,"Sheffield United","West Brom",2,2,null,0,0,null,"Coventry","Sheffield United",3,2,null,1,1]
["E1","15/08/09","Newcastle","Reading",3,0,3,1,0,1,null,"Swansea",0,0,0,0,0,0,0,0,0,0,0,0,0,0,0,0,0,0,0,0,0,0,0,0,null,null,null,{"$f":"BX20","v":"Sheffield United"},{"$f":"BY20","v":"Leicester"},{"$f":"BZ20","v":1},{"$f":"CA20","v":1},null,{"$f":"CC20","v":0},{"$f":"CD20","v":0},null,null,null,null,null,null,null,null,null,null,null,null,null,null,null,null,null,null,-22,0,0,0,0,0,0,0,0,0,null,"Sheffield United","Leicester",1,1,null,0,0,null,"Derby","Sheffield United",0,1,null,0,0]
["E1","15/08/09","Nott'm Forest","West Brom",0,1,1,0,0,0,null,"Bristol City",0,0,0,0,0,0,0,0,0,0,0,0,0,0,0,0,0,0,0,0,0,0,0,0,null,null,null,"Sheffield United","Watford",2,0,null,1,0,null,null,null,null,null,null,null,null,null,null,null,null,null,null,null,null,null,null,-21,0,0,0,0,0,0,0,0,0,null,"Sheffield United","Watford",2,0,null,1,0,null,"Reading","Sheffield United",1,3,null,1,1]
["E1","15/08/09","Peterboro","Sheffield Weds",1,1,2,0,1,1,null,"Blackpool",0,0,0,0,0,0,0,0,0,0,0,0,0,0,0,0,0,0,0,0,0,0,0,0,null,null,null,{"$f":"CF19","v":"Coventry"},{"$f":"CG19","v":"Sheffield United"},3,2,null,1,1,null,null,null,null,null,null,null,null,null,null,null,null,null,null,null,null,null,null,-20,0,0,0,0,0,0,0,0,0,null,null,null,null,null,null,null,null,null,"Middlesbrough","Sheffield United",0,0,null,0,0]
["E1","15/08/09","Plymouth","QPR",1,1,2,0,1,1,null,"Nott'm Forest",1,0,1,0,1,1,0,1,0,0,0,0,0,0,0,0,1,0,1,0,1,1,0,1,null,null,null,{"$f":"CF20","v":"Derby"},{"$f":"CG20","v":"Sheffield United"},{"$f":"CH20","v":0},{"$f":"CI20","v":1},null,{"$f":"CK20","v":0},{"$f":"CL20","v":0},null,null,null,null,null,null,null,null,null,null,null,null,null,null,null,null,null,null,-19,0,0,0,0,0,0,0,0,0]
["E1","15/08/09","Scunthorpe","Derby",3,2,5,2,1,3,null,"Barnsley",0,0,0,0,0,0,0,0,0,0,0,0,0,0,0,0,0,0,0,0,0,0,0,0,null,null,null,"Reading","Sheffield United",1,3,null,1,1,null,null,null,null,null,null,null,null,null,null,null,null,null,null,null,null,null,null,-18,0,0,0,0,0,0,0,0,0]
["E1","15/08/09","Sheffield United","Watford",2,0,2,1,0,1,null,"Doncaster",0,0,0,0,0,0,0,0,0,0,0,0,0,0,0,0,0,0,0,0,0,0,0,0,null,null,"GOST",{"$f":"BX55","v":"Sheffield Weds"},{"$f":"BY55","v":"Middlesbrough"},1,3,null,1,1,null,null,null,null,null,null,null,null,null,null,null,null,null,null,null,null,null,null,-17,0,0,0,0,0,0,0,0,0]
["E1","15/08/09","Swansea","Middlesbrough",0,3,3,0,1,1,null,"Newcastle",1,1,0,0,1,0,1,3,1,1,0,0,1,0,1,3,0,0,0,0,0,0,0,0,null,null,null,{"$f":"BX56","v":"Sheffield Weds"},{"$f":"BY56","v":"Nott'm Forest"},{"$f":"BZ56","v":1},{"$f":"CA56","v":1},null,{"$f":"CC56","v":1},{"$f":"CD56","v":1},null,null,null,null,null,null,null,null,null,null,null,null,null,null,null,null,null,null,-16,0,0,0,0,0,0,0,0,0]
["E1","18/08/09","Barnsley","Preston",0,3,3,0,2,2,null,"Ipswich",0,0,0,0,0,0,0,0,0,0,0,0,0,0,0,0,0,0,0,0,0,0,0,0,null,null,null,"Sheffield Weds","Scunthorpe",4,0,null,3,0,null,null,null,null,null,null,null,null,null,null,null,null,null,null,null,null,null,null,-15,0,0,0,0,0,0,0,0,0]
["E1","18/08/09","Blackpool","Derby",0,0,0,0,0,0,null,null,null,null,null,null,null,null,null,null,null,null,null,null,null,null,null,null,null,null,null,null,null,null,null,null,null,null,null,{"$f":"CF55","v":"Plymouth"},{"$f":"CG55","v":"Sheffield Weds"},1,3,null,0,1,null,null,null,null,null,null,null,null,null,null,null,null,null,null,null,null,null,null,-14,0,0,0,0,0,0,0,0,0]
["E1","18/08/09","Bristol City","QPR",1,0,1,0,0,0,null,null,null,null,null,null,null,null,null,null,null,null,null,null,null,null,null,null,null,null,null,null,null,null,null,null,null,null,null,{"$f":"CF56","v":"Newcastle"},{"$f":"CG56","v":"Sheffield Weds"},{"$f":"CH56","v":1},{"$f":"CI56","v":0},null,{"$f":"CK56","v":1},{"$f":"CL56","v":0},null,null,null,null,null,null,null,null,null,null,null,null,null,null,null,null,null,null,-13,0,0,0,0,0,0,0,0,0]
["E1","18/08/09","Doncaster","Coventry",0,0,0,0,0,0,null,null,null,null,null,null,null,null,null,null,null,null,null,null,null,null,null,null,null,null,null,null,null,null,null,null,null,null,null,"Peterboro","Sheffield Weds",1,1,null,0,1,null,null,null,null,null,null,null,null,null,null,null,null,null,null,null,null,null,null,-12,0,0,0,0,0,0,0,0,0]
["E1","18/08/09","Ipswich","Crystal Palace",1,3,4,0,0,0,null,null,null,null,null,null,null,null,null,null,null,null,null,null,null,null,null,null,null,null,null,null,null,null,null,null,null,null,null,null,null,null,null,null,null,null,null,null,null,null,null,null,null,null,null,null,null,null,null,null,null,null,null,null,-11,0,0,0,0,0,0,0,0,0]
["E1","18/08/09","Nott'm Forest","Watford",2,4,6,1,1,2,null,null,null,null,null,null,null,null,null,null,null,null,null,null,null,null,null,null,null,null,null,null,null,null,null,null,null,null,null,null,null,null,null,null,null,null,null,null,null,null,null,null,null,null,null,null,null,null,null,null,null,null,null,null,-10,0,0,0,0,0,0,0,0,0]
["E1","18/08/09","Peterboro","West Brom",2,3,5,1,3,4,null,null,null,null,null,null,null,null,null,null,null,null,null,null,null,null,null,null,null,null,null,null,null,null,null,null,null,null,null,null,null,null,null,null,null,null,null,null,null,null,null,null,null,null,null,null,null,null,null,null,null,null,null,null,-9,0,0,0,0,0,0,0,0,0]
["E1","18/08/09","Plymouth","Cardiff",1,3,4,0,1,1,null,null,null,null,null,null,null,null,null,null,null,null,null,null,null,null,null,null,null,null,null,null,null,null,null,null,null,null,null,null,null,null,null,null,null,null,null,null,null,null,null,null,null,null,null,null,null,null,null,null,null,null,null,null,-8,{"$f":"SUMPRODUCT(($BE$3:$BE$1000=BM34)*($BF$3:$BF$1000=1))","v":0},{"$f":"SUMPRODUCT(($BE$3:$BE$1000=BM34)*($BF$3:$BF$1000=\"X\"))","v":0},{"$f":"SUMPRODUCT(($BE$3:$BE$1000=BM34)*($BF$3:$BF$1000=2))","v":0},{"$f":"SUMPRODUCT(($BE$3:$BE$1000=BM34)*($BG$3:$BG$1000=\"0-2\"))","v":0},{"$f":"SUMPRODUCT(($BE$3:$BE$1000=BM34)*($BG$3:$BG$1000=\"3+\"))","v":0},{"$f":"SUMPRODUCT(($BE$3:$BE$1000=BM34)*($BH$3:$BH$1000=1))","v":0},{"$f":"SUMPRODUCT(($BE$3:$BE$1000=BM34)*($BI$3:$BI$1000=1))","v":0},0,0]
["E1","18/08/09","Scunthorpe","Middlesbrough",0,2,2,0,1,1,null,null,null,null,null,null,null,null,null,null,null,null,null,null,null,null,null,null,null,null,null,null,null,null,null,null,null,null,null,null,null,null,null,null,null,null,null,null,null,null,null,null,null,null,null,null,null,null,null,null,null,null,null,null,-7,0,0,0,0,0,0,0,0,0]
["E1","18/08/09","Sheffield United","Leicester",1,1,2,0,0,0,null,null,null,null,null,null,null,null,null,null,null,null,null,null,null,null,null,null,null,null,null,null,null,null,null,null,null,null,null,null,null,null,null,null,null,null,null,null,null,null,null,null,null,null,null,null,null,null,null,null,null,null,null,null,-6,0,0,0,0,0,0,0,0,0]
["E1","18/08/09","Swansea","Reading",0,0,0,0,0,0,null,null,null,null,null,null,null,null,null,null,null,null,null,null,null,null,null,null,null,null,null,null,null,null,null,null,null,null,null,null,null,null,null,null,null,null,null,null,null,null,null,null,null,null,null,null,null,null,null,null,null,null,null,null,-5,0,0,0,0,0,0,0,0,0]
["E1","19/08/09","Newcastle","Sheffield Weds",1,0,1,1,0,1,null,null,null,null,null,null,null,null,null,null,null,null,null,null,null,null,null,null,null,null,null,null,null,null,null,null,null,null,null,null,null,null,null,null,null,null,null,null,null,null,null,null,null,null,null,null,null,null,null,null,null,null,null,null,-4,0,0,0,0,0,0,0,0,0]
["E1","22/08/09","Coventry","Swansea",0,1,1,0,0,0,null,null,null,null,null,null,null,null,null,null,null,null,null,null,null,null,null,null,null,null,null,null,null,null,null,null,null,null,null,null,null,null,null,null,null,null,null,null,null,null,null,null,null,null,null,null,null,null,null,null,null,null,null,null,-3,0,0,0,0,0,0,0,0,0]
["E1","22/08/09","Crystal Palace","Newcastle",0,2,2,0,2,2,null,null,null,null,null,null,null,null,null,null,null,null,null,null,null,null,null,null,null,null,null,null,null,null,null,null,null,null,null,null,null,null,null,null,null,null,null,null,null,null,null,null,null,null,null,null,null,null,null,null,null,null,null,null,-2,0,0,0,0,0,0,0,0,0]
["E1","22/08/09","Derby","Plymouth",2,1,3,1,1,2,null,null,null,null,null,null,null,null,null,null,null,null,null,null,null,null,null,null,null,null,null,null,null,null,null,null,null,null,null,null,null,null,null,null,null,null,null,null,null,null,null,null,null,null,null,null,null,null,null,null,null,null,null,null,-1,0,0,0,0,0,0,0,0,0]
["E1","22/08/09","Leicester","Barnsley",1,0,1,0,0,0,null,null,null,null,null,null,null,null,null,null,null,null,null,null,null,null,null,null,null,null,null,null,null,null,null,null,null,null,null,null,null,null,null,null,null,null,null,null,null,null,null,null,null,null,null,null,null,null,null,null,null,null,null,null,0,0,0,0,0,0,0,0,0,0]
["E1","22/08/09","Middlesbrough","Doncaster",2,0,2,1,0,1,null,null,null,null,null,null,null,null,null,null,null,null,null,null,null,null,null,null,null,null,null,null,null,null,null,null,null,null,null,null,null,null,null,null,null,null,null,null,null,null,null,null,null,null,null,null,null,null,null,null,null,null,null,null,1,1,0,0,0,1,1,1,1,1]
["E1","22/08/09","Preston","Peterboro",2,0,2,2,0,2,null,null,null,null,null,null,null,null,null,null,null,null,null,null,null,null,null,null,null,null,null,null,null,null,null,null,null,null,null,null,null,null,null,null,null,null,null,null,null,null,null,null,null,null,null,null,null,null,null,null,null,null,null,null,2,0,0,0,0,0,0,0,0,0]
["E1","22/08/09","QPR","Nott'm Forest",1,1,2,1,0,1,null,null,null,null,null,null,null,null,null,null,null,null,null,null,null,null,null,null,null,null,null,null,null,null,null,null,null,null,null,null,null,null,null,null,null,null,null,null,null,null,null,null,null,null,null,null,null,null,null,null,null,null,null,null,3,0,0,0,0,0,0,0,0,0]
["E1","22/08/09","Reading","Sheffield United",1,3,4,1,1,2,null,null,null,null,null,null,null,null,null,null,null,null,null,null,null,null,null,null,null,null,null,null,null,null,null,null,null,null,null,null,null,null,null,null,null,null,null,null,null,null,null,null,null,null,null,null,null,null,null,null,null,null,null,null,4,0,0,0,0,0,0,0,0,0]
["E1","22/08/09","Sheffield Weds","Scunthorpe",4,0,4,3,0,3,null,null,null,null,null,null,null,null,null,null,null,null,null,null,null,null,null,null,null,null,null,null,null,null,null,null,null,null,null,null,null,null,null,null,null,null,null,null,null,null,null,null,null,null,null,null,null,null,null,null,null,null,null,null,5,0,0,0,0,0,0,0,0,0]
["E1","22/08/09","Watford","Blackpool",2,2,4,1,0,1,null,null,null,null,null,null,null,null,null,null,null,null,null,null,null,null,null,null,null,null,null,null,null,null,null,null,null,null,null,null,null,null,null,null,null,null,null,null,null,null,null,null,null,null,null,null,null,null,null,null,null,null,null,null,6,0,0,0,0,0,0,0,0,0]
["E1","22/08/09","West Brom","Ipswich",2,0,2,2,0,2,null,null,null,null,null,null,null,null,null,null,null,null,null,null,null,null,null,null,null,null,null,null,null,null,null,null,null,null,null,null,null,null,null,null,null,null,null,null,null,null,null,null,null,null,null,null,null,null,null,null,null,null,null,null,7,0,0,0,0,0,0,0,0,0]
["E1","23/08/09","Cardiff","Bristol City",3,0,3,2,0,2,null,null,null,null,null,null,null,null,null,null,null,null,null,null,null,null,null,null,null,null,null,null,null,null,null,null,null,null,null,null,null,null,null,null,null,null,null,null,null,null,null,null,null,null,null,null,null,null,null,null,null,null,null,null,8,0,0,0,0,0,0,0,0,0]
["E1","29/08/09","Barnsley","Reading",1,3,4,1,1,2,null,null,null,null,null,null,null,null,null,null,null,null,null,null,null,null,null,null,null,null,null,null,null,null,null,null,null,null,null,null,null,null,null,null,null,null,null,null,null,null,null,null,null,null,null,null,null,null,null,null,null,null,null,null,9,0,0,0,0,0,0,0,0,0]
["E1","29/08/09","Blackpool","Coventry",3,0,3,1,0,1,null,null,null,null,null,null,null,null,null,null,null,null,null,null,null,null,null,null,null,null,null,null,null,null,null,null,null,null,null,null,null,null,null,null,null,null,null,null,null,null,null,null,null,null,null,null,null,null,null,null,null,null,null,null,10,0,0,0,0,0,0,0,0,0]
["E1","29/08/09","Bristol City","Middlesbrough",2,1,3,0,0,0,null,null,null,null,null,null,null,null,null,null,null,null,null,null,null,null,null,null,null,null,null,null,null,null,null,null,null,null,null,null,null,null,null,null,null,null,null,null,null,null,null,null,null,null,null,null,null,null,null,null,null,null,null,null,11,0,0,0,0,0,0,0,0,0]
["E1","29/08/09","Doncaster","Cardiff",2,0,2,2,0,2,null,null,null,null,null,null,null,null,null,null,null,null,null,null,null,null,null,null,null,null,null,null,null,null,null,null,null,null,null,null,null,null,null,null,null,null,null,null,null,null,null,null,null,null,null,null,null,null,null,null,null,null,null,null,12,0,0,0,0,0,0,0,0,0]
["E1","29/08/09","Ipswich","Preston",1,1,2,1,1,2,null,null,null,null,null,null,null,null,null,null,null,null,null,null,null,null,null,null,null,null,null,null,null,null,null,null,null,null,null,null,null,null,null,null,null,null,null,null,null,null,null,null,null,null,null,null,null,null,null,null,null,null,null,null,13,0,0,0,0,0,0,0,0,0,null,"Sheffield Weds","Middlesbrough",1,3,null,1,1,null,"Plymouth","Sheffield Weds",1,3,null,0,1,null,1,1]
["E1","29/08/09","Nott'm Forest","Derby",3,2,5,3,0,3,null,null,null,null,null,null,null,null,null,null,null,null,null,null,null,null,null,null,null,null,null,null,null,null,null,null,null,null,null,null,null,null,null,null,null,null,null,null,null,null,null,null,null,null,null,null,null,null,null,null,null,null,null,null,14,0,0,0,0,0,0,0,0,0,null,"Sheffield Weds","Nott'm Forest",1,1,null,1,1,null,"Newcastle","Sheffield Weds",1,0,null,1,0,null,0,0]
["E1","29/08/09","Plymouth","Sheffield Weds",1,3,4,0,1,1,null,null,null,null,null,null,null,null,null,null,null,null,null,null,null,null,null,null,null,null,null,null,null,null,null,null,null,null,null,null,null,null,null,null,null,null,null,null,null,null,null,null,null,null,null,null,null,null,null,null,null,null,null,null,15,0,0,0,0,0,0,0,0,0,null,"Sheffield Weds","Scunthorpe",4,0,null,3,0,null,"Peterboro","Sheffield Weds",1,1,null,0,1,null,1,1]
["E1","29/08/09","Scunthorpe","QPR",0,1,1,0,1,1,null,null,null,null,null,null,null,null,null,null,null,null,null,null,null,null,null,null,null,null,null,null,null,null,null,null,null,null,null,null,null,null,null,null,null,null,null,null,null,null,null,null,null,null,null,null,null,null,null,null,null,null,null,null,16,0,0,0,0,0,0,0,0,0,null,"Sheffield Weds","Barnsley",2,2,null,2,0,null,null,null,null,null,null,null,null,null,0,0]
["E1","29/08/09","Sheffield United","West Brom",2,2,4,0,0,0,null,null,null,null,null,null,null,null,null,null,null,null,null,null,null,null,null,null,null,null,null,null,null,null,null,null,null,null,null,null,null,null,null,null,null,null,null,null,null,null,null,null,null,null,null,null,null,null,null,null,null,null,null,null,17,0,0,0,0,0,0,0,0,0]
["E1","29/08/09","Swansea","Watford",1,1,2,0,0,0,null,null,null,null,null,null,null,null,null,null,null,null,null,null,null,null,null,null,null,null,null,null,null,null,null,null,null,null,null,null,null,null,null,null,null,null,null,null,null,null,null,null,null,null,null,null,null,null,null,null,null,null,null,null,18,0,0,0,0,0,0,0,0,0]
["E1","31/08/09","Newcastle","Leicester",1,0,1,0,0,0,null,null,null,null,null,null,null,null,null,null,null,null,null,null,null,null,null,null,null,null,null,null,null,null,null,null,null,null,null,null,null,null,null,null,null,null,null,null,null,null,null,null,null,null,null,null,null,null,null,null,null,null,null,null,19,0,0,0,0,0,0,0,0,0]
["E1","31/08/09","Peterboro","Crystal Palace",1,1,2,0,0,0,null,null,null,null,null,null,null,null,null,null,null,null,null,null,null,null,null,null,null,null,null,null,null,null,null,null,null,null,null,null,null,null,null,null,null,null,null,null,null,null,null,null,null,null,null,null,null,null,null,null,null,null,null,null,20,0,0,0,0,0,0,0,0,0]
["E1","2009-12-09","Coventry","Bristol City",1,1,2,1,0,1,null,null,null,null,null,null,null,null,null,null,null,null,null,null,null,null,null,null,null,null,null,null,null,null,null,null,null,null,null,null,null,null,null,null,null,null,null,null,null,null,null,null,null,null,null,null,null,null,null,null,null,null,null,null,21,0,0,0,0,0,0,0,0,0]
["E1","2009-12-09","Crystal Palace","Scunthorpe",0,4,4,0,1,1,null,null,null,null,null,null,null,null,null,null,null,null,null,null,null,null,null,null,null,null,null,null,null,null,null,null,null,null,null,null,null,null,null,null,null,null,null,null,null,null,null,null,null,null,null,null,null,null,null,null,null,null,null,null,22,0,0,0,0,0,0,0,0,0]
["E1","2009-12-09","Derby","Sheffield United",0,1,1,0,0,0,null,null,null,null,null,null,null,null,null,null,null,null,null,null,null,null,null,null,null,null,null,null,null,null,null,null,null,null,null,null,null,null,null,null,null,null,null,null,null,null,null,null,null,null,null,null,null,null,null,null,null,null,null,null,23,0,0,0,0,0,0,0,0,0]
["E1","2009-12-09","Leicester","Blackpool",2,1,3,1,1,2,null,null,null,null,null,null,null,null,null,null,null,null,null,null,null,null,null,null,null,null,null,null,null,null,null,null,null,null,null,null,null,null,null,null,null,null,null,null,null,null,null,null,null,null,null,null,null,null,null,null,null,null,null,null,24,{"$f":"SUMPRODUCT(($BE$3:$BE$1000=BM66)*($BF$3:$BF$1000=1))","v":0},{"$f":"SUMPRODUCT(($BE$3:$BE$1000=BM66)*($BF$3:$BF$1000=\"X\"))","v":0},{"$f":"SUMPRODUCT(($BE$3:$BE$1000=BM66)*($BF$3:$BF$1000=2))","v":0},{"$f":"SUMPRODUCT(($BE$3:$BE$1000=BM66)*($BG$3:$BG$1000=\"0-2\"))","v":0},{"$f":"SUMPRODUCT(($BE$3:$BE$1000=BM66)*($BG$3:$BG$1000=\"3+\"))","v":0},{"$f":"SUMPRODUCT(($BE$3:$BE$1000=BM66)*($BH$3:$BH$1000=1))","v":0},{"$f":"SUMPRODUCT(($BE$3:$BE$1000=BM66)*($BI$3:$BI$1000=1))","v":0},0,0]
["E1","2009-12-09","Middlesbrough","Ipswich",3,1,{"$f":"E67+F67","v":4},1,0,{"$f":"H67+I67","v":1},null,null,null,null,null,null,null,null,null,null,null,null,null,null,null,null,null,null,null,null,null,null,null,null,null,null,null,null,null,null,null,null,null,null,null,null,null,null,null,null,null,null,null,null,null,null,null,null,null,null,null,null,null,null,25,0,0,0,0,0,0,0,{"$f":"SUMPRODUCT(($BE$3:$BE$1000=BM67)*($BJ$3:$BJ$1000=1))","v":0},{"$f":"SUMPRODUCT(($BE$3:$BE$1000=BM67)*($BK$3:$BK$1000=1))","v":0}]
["E1","2009-12-09","Preston","Swansea",2,0,2,1,0,1,null,null,null,null,null,null,null,null,null,null,null,null,null,null,null,null,null,null,null,null,null,null,null,null,null,null,null,null,null,null,null,null,null,null,null,null,null,null,null,null,null,null,null,null,null,null,null,null,null,null,null,null,null,null,26,0,0,0,0,0,0,0,0,0]
["E1","2009-12-09","QPR","Peterboro",1,1,2,1,1,2,null,null,null,null,null,null,null,null,null,null,null,null,null,null,null,null,null,null,null,null,null,null,null,null,null,null,null,null,null,null,null,null,null,null,null,null,null,null,null,null,null,null,null,null,null,null,null,null,null,null,null,null,null,null,27,0,0,0,0,0,0,0,0,0]
["E1","2009-12-09","Reading","Doncaster",0,0,0,0,0,0,null,null,null,null,null,null,null,null,null,null,null,null,null,null,null,null,null,null,null,null,null,null,null,null,null,null,null,null,null,null,null,null,null,null,null,null,null,null,null,null,null,null,null,null,null,null,null,null,null,null,null,null,null,null,28,0,0,0,0,0,0,0,0,0]
["E1","2009-12-09","Sheffield Weds","Nott'm Forest",1,1,2,1,1,2,null,null,null,null,null,null,null,null,null,null,null,null,null,null,null,null,null,null,null,null,null,null,null,null,null,null,null,null,null,null,null,null,null,null,null,null,null,null,null,null,null,null,null,null,null,null,null,null,null,null,null,null,null,null,29,0,0,0,0,0,0,0,0,0]
["E1","2009-12-09","Watford","Barnsley",1,0,1,0,0,0,null,null,null,null,null,null,null,null,null,null,null,null,null,null,null,null,null,null,null,null,null,null,null,null,null,null,null,null,null,null,null,null,null,null,null,null,null,null,null,null,null,null,null,null,null,null,null,null,null,null,null,null,null,null,30,0,0,0,0,0,0,0,0,0]
["E1","2009-12-09","West Brom","Plymouth",3,1,4,2,1,3,null,null,null,null,null,null,null,null,null,null,null,null,null,null,null,null,null,null,null,null,null,null,null,null,null,null,null,null,null,null,null,null,null,null,null,null,null,null,null,null,null,null,null,null,null,null,null,null,null,null,null,null,null,null,31,0,0,0,0,0,0,0,0,0]
[null,null,null,null,null,null,null,null,null,0,null,null,null,null,null,null,null,null,null,null,null,null,null,null,null,null,null,null,null,null,null,null,null,null,null,null,null,null,null,null,null,null,null,null,null,null,null,null,null,null,null,null,null,null,null,null,null,null,null,null,null,null,null,null,32,0,0,0,0,0,0,0,0,0]
[null,null,null,null,null,null,null,null,null,0,null,null,null,null,null,null,null,null,null,null,null,null,null,null,null,null,null,null,null,null,null,null,null,null,null,null,null,null,null,null,null,null,null,null,null,null,null,null,null,null,null,null,null,null,null,null,null,null,null,null,null,null,null,null,33,0,0,0,0,0,0,0,0,0]
[null,null,null,null,null,null,null,null,null,0,null,null,null,null,null,null,null,null,null,null,null,null,null,null,null,null,null,null,null,null,null,null,null,null,null,null,null,null,null,null,null,null,null,null,null,null,null,null,null,null,null,null,null,null,null,null,null,null,null,null,null,null,null,null,34,0,0,0,0,0,0,0,0,0]
[null,null,null,null,null,null,null,null,null,0,null,null,null,null,null,null,null,null,null,null,null,null,null,null,null,null,null,null,null,null,null,null,null,null,null,null,null,null,null,null,null,null,null,null,null,null,null,null,null,null,null,null,null,null,null,null,null,null,null,null,null,null,null,null,35,0,0,0,0,0,0,0,0,0]
[null,null,null,null,null,null,null,null,null,0,null,null,null,null,null,null,null,null,null,null,null,null,null,null,null,null,null,null,null,null,null,null,null,null,null,null,null,null,null,null,null,null,null,null,null,null,null,null,null,null,null,null,null,null,null,null,null,null,null,null,null,null,null,null,36,0,0,0,0,0,0,0,0,0]
[null,null,null,null,null,null,null,null,null,0,null,null,null,null,null,null,null,null,null,null,null,null,null,null,null,null,null,null,null,null,null,null,null,null,null,null,null,null,null,null,null,null,null,null,null,null,null,null,null,null,null,null,null,null,null,null,null,null,null,null,null,null,null,null,37,0,0,0,0,0,0,0,0,0]
[null,null,null,null,null,null,null,null,null,0,null,null,null,null,null,null,null,null,null,null,null,null,null,null,null,null,null,null,null,null,null,null,null,null,null,null,null,null,null,null,null,null,null,null,null,null,null,null,null,null,null,null,null,null,null,null,null,null,null,null,null,null,null,null,38,0,0,0,0,0,0,0,0,0]
[null,null,null,null,null,null,null,null,null,0,null,null,null,null,null,null,null,null,null,null,null,null,null,null,null,null,null,null,null,null,null,null,null,null,null,null,null,null,null,null,null,null,null,null,null,null,null,null,null,null,null,null,null,null,null,null,null,null,null,null,null,null,null,null,39,0,0,0,0,0,0,0,0,0]
[null,null,null,null,null,null,null,null,null,0,null,null,null,null,null,null,null,null,null,null,null,null,null,null,null,null,null,null,null,null,null,null,null,null,null,null,null,null,null,null,null,null,null,null,null,null,null,null,null,null,null,null,null,null,null,null,null,null,null,null,null,null,null,null,40,0,0,0,0,0,0,0,0,0]
[null,null,null,null,null,null,null,null,null,0,null,null,null,null,null,null,null,null,null,null,null,null,null,null,null,null,null,null,null,null,null,null,null,null,null,null,null,null,null,null,null,null,null,null,null,null,null,null,null,null,null,null,null,null,null,null,null,null,null,null,null,null,null,null,41,0,0,0,0,0,0,0,0,0]
[null,null,null,null,null,null,null,null,null,0,null,null,null,null,null,null,null,null,null,null,null,null,null,null,null,null,null,null,null,null,null,null,null,null,null,null,null,null,null,null,null,null,null,null,null,null,null,null,null,null,null,null,null,null,null,null,null,null,null,null,null,null,null,null,42,0,0,0,0,0,0,0,0,0]
[null,null,null,null,null,null,null,null,null,0,null,null,null,null,null,null,null,null,null,null,null,null,null,null,null,null,null,null,null,null,null,null,null,null,null,null,null,null,null,null,null,null,null,null,null,null,null,null,null,null,null,null,null,null,null,null,null,null,null,null,null,null,null,null,43,0,0,0,0,0,0,0,0,0]
[null,null,null,null,null,null,null,null,null,0,null,null,null,null,null,null,null,null,null,null,null,null,null,null,null,null,null,null,null,null,null,null,null,null,null,null,null,null,null,null,null,null,null,null,null,null,null,null,null,null,null,null,null,null,null,null,null,null,null,null,null,null,null,null,44,0,0,0,0,0,0,0,0,0]
[null,null,null,null,null,null,null,null,null,0,null,null,null,null,null,null,null,null,null,null,null,null,null,null,null,null,null,null,null,null,null,null,null,null,null,null,null,null,null,null,null,null,null,null,null,null,null,null,null,null,null,null,null,null,null,null,null,null,null,null,null,null,null,null,45,0,0,0,0,0,0,0,0,0]
[null,null,null,null,null,null,null,null,null,0,null,null,null,null,null,null,null,null,null,null,null,null,null,null,null,null,null,null,null,null,null,null,null,null,null,null,null,null,null,null,null,null,null,null,null,null,null,null,null,null,null,null,null,null,null,null,null,null,null,null,null,null,null,null,46,0,0,0,0,0,0,0,0,0]
[null,null,null,null,null,null,null,null,null,0,null,null,null,null,null,null,null,null,null,null,null,null,null,null,null,null,null,null,null,null,null,null,null,null,null,null,null,null,null,null,null,null,null,null,null,null,null,null,null,null,null,null,null,null,null,null,null,null,null,null,null,null,null,null,47,0,0,0,0,0,0,0,0,0]
[null,null,null,null,null,null,null,null,null,0,null,null,null,null,null,null,null,null,null,null,null,null,null,null,null,null,null,null,null,null,null,null,null,null,null,null,null,null,null,null,null,null,null,null,null,null,null,null,null,null,null,null,null,null,null,null,null,null,null,null,null,null,null,null,48,0,0,0,0,0,0,0,0,0]
[null,null,null,null,null,null,null,null,null,0,null,null,null,null,null,null,null,null,null,null,null,null,null,null,null,null,null,null,null,null,null,null,null,null,null,null,null,null,null,null,null,null,null,null,null,null,null,null,null,null,null,null,null,null,null,null,null,null,null,null,null,null,null,null,49,0,0,0,0,0,0,0,0,0]
[null,null,null,null,null,null,null,null,null,0,null,null,null,null,null,null,null,null,null,null,null,null,null,null,null,null,null,null,null,null,null,null,null,null,null,null,null,null,null,null,null,null,null,null,null,null,null,null,null,null,null,null,null,null,null,null,null,null,null,null,null,null,null,null,50,0,0,0,0,0,0,0,0,0]
[null,null,null,null,null,null,null,null,null,0,null,null,null,null,null,null,null,null,null,null,null,null,null,null,null,null,null,null,null,null,null,null,null,null,null,null,null,null,null,null,null,null,null,null,null,null,null,null,null,null,null,null,null,null,null,null,null,null,null,null,null,null,null,null,51,0,0,0,0,0,0,0,0,0]
[null,null,null,null,null,null,null,null,null,0,null,null,null,null,null,null,null,null,null,null,null,null,null,null,null,null,null,null,null,null,null,null,null,null,null,null,null,null,null,null,null,null,null,null,null,null,null,null,null,null,null,null,null,null,null,null,null,null,null,null,null,null,null,null,52,0,0,0,0,0,0,0,0,0]
[null,null,null,null,null,null,null,null,null,0,null,null,null,null,null,null,null,null,null,null,null,null,null,null,null,null,null,null,null,null,null,null,null,null,null,null,null,null,null,null,null,null,null,null,null,null,null,null,null,null,null,null,null,null,null,null,null,null,null,null,null,null,null,null,53,0,0,0,0,0,0,0,0,0]
[null,null,null,null,null,null,null,null,null,0,null,null,null,null,null,null,null,null,null,null,null,null,null,null,null,null,null,null,null,null,null,null,null,null,null,null,null,null,null,null,null,null,null,null,null,null,null,null,null,null,null,null,null,null,null,null,null,null,null,null,null,null,null,null,54,0,0,0,0,0,0,0,0,0]
[null,null,null,null,null,null,null,null,null,0,null,null,null,null,null,null,null,null,null,null,null,null,null,null,null,null,null,null,null,null,null,null,null,null,null,null,null,null,null,null,null,null,null,null,null,null,null,null,null,null,null,null,null,null,null,null,null,null,null,null,null,null,null,null,55,0,0,0,0,0,0,0,0,0]
[null,null,null,null,null,null,null,null,null,0]
[null,null,null,null,null,null,null,null,null,0]
[null,null,null,null,null,null,null,null,null,0]
[null,null,null,null,null,null,null,null,null,0]
[null,null,null,null,null,null,null,null,null,0]
[null,null,null,null,null,null,null,null,null,0]
[null,null,null,null,null,null,null,null,null,0]
[null,null,null,null,null,null,null,null,null,0]
[null,null,null,null,null,null,null,null,null,0]
[null,null,null,null,null,null,null,null,null,0]
[null,null,null,null,null,null,null,null,null,0]
[null,null,null,null,null,null,null,null,null,0]
[null,null,null,null,null,null,null,null,null,0]
[null,null,null,null,null,null,null,null,null,0]
[null,null,null,null,null,null,null,null,null,0]
[null,null,null,null,null,null,null,null,null,0]
[null,null,null,null,null,null,null,null,null,0]
[null,null,null,null,null,null,null,null,null,0]
[null,null,null,null,null,null,null,null,null,0]
[null,null,null,null,null,null,null,null,null,0]
[null,null,null,null,null,null,null,null,null,0]
[null,null,null,null,null,null,null,null,null,0]
[null,null,null,null,null,null,null,null,null,0]
[null,null,null,null,null,null,null,null,null,0]
[null,null,null,null,null,null,null,null,null,0]
[null,null,null,null,null,null,null,null,null,0]
[null,null,null,null,null,null,null,null,null,0]
[null,null,null,null,null,null,null,null,null,0]
[null,null,null,null,null,null,null,null,null,0]
[null,null,null,null,null,null,null,null,null,0]
[null,null,null,null,null,null,null,null,null,0]
[null,null,null,null,null,null,null,null,null,0]
[null,null,null,null,null,null,null,null,null,0]
[null,null,null,null,null,null,null,null,null,{"$f":"H131+I131","v":0}]
[null,null,null,null,null,null,null,null,null,0]
[null,null,null,null,null,null,null,null,null,0]
[null,null,null,null,null,null,null,null,null,0]
[null,null,null,null,null,null,null,null,null,0]
[null,null,null,null,null,null,null,null,null,0]
[null,null,null,null,null,null,null,null,null,0]
[null,null,null,null,null,null,null,null,null,0]
[null,null,null,null,null,null,null,null,null,0]
[null,null,null,null,null,null,null,null,null,0]
[null,null,null,null,null,null,null,null,null,0]
[null,null,null,null,null,null,null,null,null,0]
[null,null,null,null,null,null,null,null,null,0]
[null,null,null,null,null,null,null,null,null,0]
[null,null,null,null,null,null,null,null,null,0]
[null,null,null,null,null,null,null,null,null,0]
[null,null,null,null,null,null,null,null,null,0]
[null,null,null,null,null,null,null,null,null,0]
[null,null,null,null,null,null,null,null,null,0]
[null,null,null,null,null,null,null,null,null,0]
[null,null,null,null,null,null,null,null,null,0]
[null,null,null,null,null,null,null,null,null,0]
[null,null,null,null,null,null,null,null,null,0]
[null,null,null,null,null,null,null,null,null,0]
[null,null,null,null,null,null,null,null,null,0]
[null,null,null,null,null,null,null,null,null,0]
[null,null,null,null,null,null,null,null,null,0]
[null,null,null,null,null,null,null,null,null,0]
[null,null,null,null,null,null,null,null,null,0]
[null,null,null,null,null,null,null,null,null,0]
[null,null,null,null,null,null,null,null,null,0]
[null,null,null,null,null,null,null,null,null,0]
[null,null,null,null,null,null,null,null,null,0]
[null,null,null,null,null,null,null,null,null,0]
[null,null,null,null,null,null,null,null,null,0]
[null,null,null,null,null,null,null,null,null,0]
[null,null,null,null,null,null,null,null,null,0]
[null,null,null,null,null,null,null,null,null,0]
[null,null,null,null,null,null,null,null,null,0]
[null,null,null,null,null,null,null,null,null,0]
[null,null,null,null,null,null,null,null,null,0]
[null,null,null,null,null,null,null,null,null,0]
[null,null,null,null,null,null,null,null,null,0]
[null,null,null,null,null,null,null,null,null,0]
[null,null,null,null,null,null,null,null,null,0]
[null,null,null,null,null,null,null,null,null,0]
[null,null,null,null,null,null,null,null,null,0]
[null,null,null,null,null,null,null,null,null,0]
[null,null,null,null,null,null,null,null,null,0]
[null,null,null,null,null,null,null,null,null,0]
[null,null,null,null,null,null,null,null,null,0]
[null,null,null,null,null,null,null,null,null,0]
[null,null,null,null,null,null,null,null,null,0]
[null,null,null,null,null,null,null,null,null,0]
[null,null,null,null,null,null,null,null,null,0]
[null,null,null,null,null,null,null,null,null,0]
[null,null,null,null,null,null,null,null,null,0]
[null,null,null,null,null,null,null,null,null,0]
[null,null,null,null,null,null,null,null,null,0]
[null,null,null,null,null,null,null,null,null,0]
[null,null,null,null,null,null,null,null,null,0]
[null,null,null,null,null,null,null,null,null,0]
[null,null,null,null,null,null,null,null,null,0]
[null,null,null,null,null,null,null,null,null,0]
[null,null,null,null,null,null,null,null,null,{"$f":"H195+I195","v":0}]
[null,null,null,null,null,null,null,null,null,0]
[null,null,null,null,null,null,null,null,null,0]
[null,null,null,null,null,null,null,null,null,0]
[null,null,null,null,null,null,null,null,null,0]
[null,null,null,null,null,null,null,null,null,0]
[null,null,null,null,null,null,null,null,null,0]
[null,null,null,null,null,null,null,null,null,0]
[null,null,null,null,null,null,null,null,null,0]
[null,null,null,null,null,null,null,null,null,0]
[null,null,null,null,null,null,null,null,null,0]
[null,null,null,null,null,null,null,null,null,0]
[null,null,null,null,null,null,null,null,null,0]
[null,null,null,null,null,null,null,null,null,0]
[null,null,null,null,null,null,null,null,null,0]
[null,null,null,null,null,null,null,null,null,0]
[null,null,null,null,null,null,null,null,null,0]
[null,null,null,null,null,null,null,null,null,0]
[null,null,null,null,null,null,null,null,null,0]
[null,null,null,null,null,null,null,null,null,0]
[null,null,null,null,null,null,null,null,null,0]
[null,null,null,null,null,null,null,null,null,0]
[null,null,null,null,null,null,null,null,null,0]
[null,null,null,null,null,null,null,null,null,0]
[null,null,null,null,null,null,null,null,null,0]
[null,null,null,null,null,null,null,null,null,0]
[null,null,null,null,null,null,null,null,null,0]
[null,null,null,null,null,null,null,null,null,0]
[null,null,null,null,null,null,null,null,null,0]
[null,null,null,null,null,null,null,null,null,0]
[null,null,null,null,null,null,null,null,null,0]
[null,null,null,null,null,null,null,null,null,0]
[null,null,null,null,null,null,null,null,null,0]
[null,null,null,null,null,null,null,null,null,0]
[null,null,null,null,null,null,null,null,null,0]
[null,null,null,null,null,null,null,null,null,0]
[null,null,null,null,null,null,null,null,null,0]
[null,null,null,null,null,null,null,null,null,0]
[null,null,null,null,null,null,null,null,null,0]
[null,null,null,null,null,null,null,null,null,0]
[null,null,null,null,null,null,null,null,null,0]
[null,null,null,null,null,null,null,null,null,0]
[null,null,null,null,null,null,null,null,null,0]
[null,null,null,null,null,null,null,null,null,0]
[null,null,null,null,null,null,null,null,null,0]
[null,null,null,null,null,null,null,null,null,0]
[null,null,null,null,null,null,null,null,null,0]
[null,null,null,null,null,null,null,null,null,0]
[null,null,null,null,null,null,null,null,null,0]
[null,null,null,null,null,null,null,null,null,0]
[null,null,null,null,null,null,null,null,null,0]
[null,null,null,null,null,null,null,null,null,0]
[null,null,null,null,null,null,null,null,null,0]
[null,null,null,null,null,null,null,null,null,0]
[null,null,null,null,null,null,null,null,null,0]
[null,null,null,null,null,null,null,null,null,0]
[null,null,null,null,null,null,null,null,null,0]
[null,null,null,null,null,null,null,null,null,0]
[null,null,null,null,null,null,null,null,null,0]
[null,null,null,null,null,null,null,null,null,0]
[null,null,null,null,null,null,null,null,null,0]
[null,null,null,null,null,null,null,null,null,0]
[null,null,null,null,null,null,null,null,null,0]
[null,null,null,null,null,null,null,null,null,0]
[null,null,null,null,null,null,null,null,null,{"$f":"H259+I259","v":0}]
[null,null,null,null,null,null,null,null,null,0]
[null,null,null,null,null,null,null,null,null,0]
[null,null,null,null,null,null,null,null,null,0]
[null,null,null,null,null,null,null,null,null,0]
[null,null,null,null,null,null,null,null,null,0]
[null,null,null,null,null,null,null,null,null,0]
[null,null,null,null,null,null,null,null,null,0]
[null,null,null,null,null,null,null,null,null,0]
[null,null,null,null,null,null,null,null,null,0]
[null,null,null,null,null,null,null,null,null,0]
[null,null,null,null,null,null,null,null,null,0]
[null,null,null,null,null,null,null,null,null,0]
[null,null,null,null,null,null,null,null,null,0]
[null,null,null,null,null,null,null,null,null,0]
[null,null,null,null,null,null,null,null,null,0]
[null,null,null,null,null,null,null,null,null,0]
[null,null,null,null,null,null,null,null,null,0]
[null,null,null,null,null,null,null,null,null,0]
[null,null,null,null,null,null,null,null,null,0]
[null,null,null,null,null,null,null,null,null,0]
[null,null,null,null,null,null,null,null,null,0]
[null,null,null,null,null,null,null,null,null,0]
[null,null,null,null,null,null,null,null,null,0]
[null,null,null,null,null,null,null,null,null,0]
[null,null,null,null,null,null,null,null,null,0]
[null,null,null,null,null,null,null,null,null,0]
[null,null,null,null,null,null,null,null,null,0]
[null,null,null,null,null,null,null,null,null,0]
[null,null,null,null,null,null,null,null,null,0]
[null,null,null,null,null,null,null,null,null,0]
[null,null,null,null,null,null,null,null,null,0]
[null,null,null,null,null,null,null,null,null,0]
[null,null,null,null,null,null,null,null,null,0]
[null,null,null,null,null,null,null,null,null,0]
[null,null,null,null,null,null,null,null,null,0]
[null,null,null,null,null,null,null,null,null,0]
[null,null,null,null,null,null,null,null,null,0]
[null,null,null,null,null,null,null,null,null,0]
[null,null,null,null,null,null,null,null,null,0]
[null,null,null,null,null,null,null,null,null,0]
[null,null,null,null,null,null,null,null,null,0]
[null,null,null,null,null,null,null,null,null,0]
[null,null,null,null,null,null,null,null,null,0]
[null,null,null,null,null,null,null,null,null,0]
[null,null,null,null,null,null,null,null,null,0]
[null,null,null,null,null,null,null,null,null,0]
[null,null,null,null,null,null,null,null,null,0]
[null,null,null,null,null,null,null,null,null,0]
[null,null,null,null,null,null,null,null,null,0]
[null,null,null,null,null,null,null,null,null,0]
[null,null,null,null,null,null,null,null,null,0]
[null,null,null,null,null,null,null,null,null,0]
[null,null,null,null,null,null,null,null,null,0]
[null,null,null,null,null,null,null,null,null,0]
[null,null,null,null,null,null,null,null,null,0]
[null,null,null,null,null,null,null,null,null,0]
[null,null,null,null,null,null,null,null,null,0]
[null,null,null,null,null,null,null,null,null,0]
[null,null,null,null,null,null,null,null,null,0]
[null,null,null,null,null,null,null,null,null,0]
[null,null,null,null,null,null,null,null,null,0]
[null,null,null,null,null,null,null,null,null,0]
[null,null,null,null,null,null,null,null,null,0]
[null,null,null,null,null,null,null,null,null,{"$f":"H323+I323","v":0}]
[null,null,null,null,null,null,null,null,null,0]
[null,null,null,null,null,null,null,null,null,0]
[null,null,null,null,null,null,null,null,null,0]
[null,null,null,null,null,null,null,null,null,0]
[null,null,null,null,null,null,null,null,null,0]
[null,null,null,null,null,null,null,null,null,0]
[null,null,null,null,null,null,null,null,null,0]
[null,null,null,null,null,null,null,null,null,0]
[null,null,null,null,null,null,null,null,null,0]
[null,null,null,null,null,null,null,null,null,0]
[null,null,null,null,null,null,null,null,null,0]
[null,null,null,null,null,null,null,null,null,0]
[null,null,null,null,null,null,null,null,null,0]
[null,null,null,null,null,null,null,null,null,0]
[null,null,null,null,null,null,null,null,null,0]
[null,null,null,null,null,null,null,null,null,0]
[null,null,null,null,null,null,null,null,null,0]
[null,null,null,null,null,null,null,null,null,0]
[null,null,null,null,null,null,null,null,null,0]
[null,null,null,null,null,null,null,null,null,0]
[null,null,null,null,null,null,null,null,null,0]
[null,null,null,null,null,null,null,null,null,0]
[null,null,null,null,null,null,null,null,null,0]
[null,null,null,null,null,null,null,null,null,0]
[null,null,null,null,null,null,null,null,null,0]
[null,null,null,null,null,null,null,null,null,0]
[null,null,null,null,null,null,null,null,null,0]
[null,null,null,null,null,null,null,null,null,0]
[null,null,null,null,null,null,null,null,null,0]
[null,null,null,null,null,null,null,null,null,0]
[null,null,null,null,null,null,null,null,null,0]
[null,null,null,null,null,null,null,null,null,0]
[null,null,null,null,null,null,null,null,null,0]
[null,null,null,null,null,null,null,null,null,0]
[null,null,null,null,null,null,null,null,null,0]
[null,null,null,null,null,null,null,null,null,0]
[null,null,null,null,null,null,null,null,null,0]
[null,null,null,null,null,null,null,null,null,0]
[null,null,null,null,null,null,null,null,null,0]
[null,null,null,null,null,null,null,null,null,0]
[null,null,null,null,null,null,null,null,null,0]
[null,null,null,null,null,null,null,null,null,0]
[null,null,null,null,null,null,null,null,null,0]
[null,null,null,null,null,null,null,null,null,0]
[null,null,null,null,null,null,null,null,null,0]
[null,null,null,null,null,null,null,null,null,0]
[null,null,null,null,null,null,null,null,null,0]
[null,null,null,null,null,null,null,null,null,0]
[null,null,null,null,null,null,null,null,null,0]
[null,null,null,null,null,null,null,null,null,0]
[null,null,null,null,null,null,null,null,null,0]
[null,null,null,null,null,null,null,null,null,0]
[null,null,null,null,null,null,null,null,null,0]
[null,null,null,null,null,null,null,null,null,0]
[null,null,null,null,null,null,null,null,null,0]
[null,null,null,null,null,null,null,null,null,0]
[null,null,null,null,null,null,null,null,null,0]
[null,null,null,null,null,null,null,null,null,0]
[null,null,null,null,null,null,null,null,null,0]
[null,null,null,null,null,null,null,null,null,0]
[null,null,null,null,null,null,null,null,null,0]
[null,null,null,null,null,null,null,null,null,0]
[null,null,null,null,null,null,null,null,null,0]
[null,null,null,null,null,null,null,null,null,{"$f":"H387+I387","v":0}]
[null,null,null,null,null,null,null,null,null,0]
[null,null,null,null,null,null,null,null,null,0]
[null,null,null,null,null,null,null,null,null,0]
[null,null,null,null,null,null,null,null,null,0]
[null,null,null,null,null,null,null,null,null,0]
[null,null,null,null,null,null,null,null,null,0]
[null,null,null,null,null,null,null,null,null,0]
[null,null,null,null,null,null,null,null,null,0]
[null,null,null,null,null,null,null,null,null,0]
[null,null,null,null,null,null,null,null,null,0]
[null,null,null,null,null,null,null,null,null,0]
[null,null,null,null,null,null,null,null,null,0]
[null,null,null,null,null,null,null,null,null,0]
[null,null,null,null,null,null,null,null,null,0]
[null,null,null,null,null,null,null,null,null,0]
[null,null,null,null,null,null,null,null,null,0]
[null,null,null,null,null,null,null,null,null,0]
[null,null,null,null,null,null,null,null,null,0]
[null,null,null,null,null,null,null,null,null,0]
[null,null,null,null,null,null,null,null,null,0]
[null,null,null,null,null,null,null,null,null,0]
[null,null,null,null,null,null,null,null,null,0]
[null,null,null,null,null,null,null,null,null,0]
[null,null,null,null,null,null,null,null,null,0]
[null,null,null,null,null,null,null,null,null,0]
[null,null,null,null,null,null,null,null,null,0]
[null,null,null,null,null,null,null,null,null,0]
[null,null,null,null,null,null,null,null,null,0]
[null,null,null,null,null,null,null,null,null,0]
[null,null,null,null,null,null,null,null,null,0]
[null,null,null,null,null,null,null,null,null,0]
[null,null,null,null,null,null,null,null,null,0]
[null,null,null,null,null,null,null,null,null,0]
[null,null,null,null,null,null,null,null,null,0]
[null,null,null,null,null,null,null,null,null,0]
[null,null,null,null,null,null,null,null,null,0]
[null,null,null,null,null,null,null,null,null,0]
[null,null,null,null,null,null,null,null,null,0]
[null,null,null,null,null,null,null,null,null,0]
[null,null,null,null,null,null,null,null,null,0]
[null,null,null,null,null,null,null,null,null,0]
[null,null,null,null,null,null,null,null,null,0]
[null,null,null,null,null,null,null,null,null,0]
[null,null,null,null,null,null,null,null,null,0]
[null,null,null,null,null,null,null,null,null,0]
[null,null,null,null,null,null,null,null,null,0]
[null,null,null,null,null,null,null,null,null,0]
[null,null,null,null,null,null,null,null,null,0]
[null,null,null,null,null,null,null,null,null,0]
[null,null,null,null,null,null,null,null,null,0]
[null,null,null,null,null,null,null,null,null,0]
[null,null,null,null,null,null,null,null,null,0]
[null,null,null,null,null,null,null,null,null,0]
[null,null,null,null,null,null,null,null,null,0]
[null,null,null,null,null,null,null,null,null,0]
[null,null,null,null,null,null,null,null,null,0]
[null,null,null,null,null,null,null,null,null,0]
[null,null,null,null,null,null,null,null,null,0]
[null,null,null,null,null,null,null,null,null,0]
[null,null,null,null,null,null,null,null,null,0]
[null,null,null,null,null,null,null,null,null,0]
[null,null,null,null,null,null,null,null,null,0]
[null,null,null,null,null,null,null,null,null,0]
[null,null,null,null,null,null,null,null,null,{"$f":"H451+I451","v":0}]
[null,null,null,null,null,null,null,null,null,0]
[null,null,null,null,null,null,null,null,null,0]
[null,null,null,null,null,null,null,null,null,0]
[null,null,null,null,null,null,null,null,null,0]
[null,null,null,null,null,null,null,null,null,0]
[null,null,null,null,null,null,null,null,null,0]
[null,null,null,null,null,null,null,null,null,0]
[null,null,null,null,null,null,null,null,null,0]
[null,null,null,null,null,null,null,null,null,0]
[null,null,null,null,null,null,null,null,null,0]
[null,null,null,null,null,null,null,null,null,0]
[null,null,null,null,null,null,null,null,null,0]
[null,null,null,null,null,null,null,null,null,0]
[null,null,null,null,null,null,null,null,null,0]
[null,null,null,null,null,null,null,null,null,0]
[null,null,null,null,null,null,null,null,null,0]
[null,null,null,null,null,null,null,null,null,0]
[null,null,null,null,null,null,null,null,null,0]
[null,null,null,null,null,null,null,null,null,0]
[null,null,null,null,null,null,null,null,null,0]
[null,null,null,null,null,null,null,null,null,0]
[null,null,null,null,null,null,null,null,null,0]
[null,null,null,null,null,null,null,null,null,0]
[null,null,null,null,null,null,null,null,null,0]
[null,null,null,null,null,null,null,null,null,0]
[null,null,null,null,null,null,null,null,null,0]
[null,null,null,null,null,null,null,null,null,0]
[null,null,null,null,null,null,null,null,null,0]
[null,null,null,null,null,null,null,null,null,0]
[null,null,null,null,null,null,null,null,null,0]
[null,null,null,null,null,null,null,null,null,0]
[null,null,null,null,null,null,null,null,null,0]
[null,null,null,null,null,null,null,null,null,0]
[null,null,null,null,null,null,null,null,null,0]
[null,null,null,null,null,null,null,null,null,0]
[null,null,null,null,null,null,null,null,null,0]
[null,null,null,null,null,null,null,null,null,0]
[null,null,null,null,null,null,null,null,null,0]
[null,null,null,null,null,null,null,null,null,0]
[null,null,null,null,null,null,null,null,null,0]
[null,null,null,null,null,null,null,null,null,0]
[null,null,null,null,null,null,null,null,null,0]
[null,null,null,null,null,null,null,null,null,0]
[null,null,null,null,null,null,null,null,null,0]
[null,null,null,null,null,null,null,null,null,0]
[null,null,null,null,null,null,null,null,null,0]
[null,null,null,null,null,null,null,null,null,0]
[null,null,null,null,null,null,null,null,null,0]
[null,null,null,null,null,null,null,null,null,0]
[null,null,null,null,null,null,null,null,null,0]
[null,null,null,null,null,null,null,null,null,0]
[null,null,null,null,null,null,null,null,null,0]
[null,null,null,null,null,null,null,null,null,0]
[null,null,null,null,null,null,null,null,null,0]
[null,null,null,null,null,null,null,null,null,0]
[null,null,null,null,null,null,null,null,null,0]
[null,null,null,null,null,null,null,null,null,0]
[null,null,null,null,null,null,null,null,null,0]
[null,null,null,null,null,null,null,null,null,0]
[null,null,null,null,null,null,null,null,null,0]
[null,null,null,null,null,null,null,null,null,0]
[null,null,null,null,null,null,null,null,null,0]
[null,null,null,null,null,null,null,null,null,0]
[null,null,null,null,null,null,null,null,null,{"$f":"H515+I515","v":0}]
[null,null,null,null,null,null,null,null,null,0]
[null,null,null,null,null,null,null,null,null,0]
[null,null,null,null,null,null,null,null,null,0]
[null,null,null,null,null,null,null,null,null,0]
[null,null,null,null,null,null,null,null,null,0]
[null,null,null,null,null,null,null,null,null,0]
[null,null,null,null,null,null,null,null,null,0]
[null,null,null,null,null,null,null,null,null,0]
[null,null,null,null,null,null,null,null,null,0]
[null,null,null,null,null,null,null,null,null,0]
[null,null,null,null,null,null,null,null,null,0]
[null,null,null,null,null,null,null,null,null,0]
[null,null,null,null,null,null,null,null,null,0]
[null,null,null,null,null,null,null,null,null,0]
[null,null,null,null,null,null,null,null,null,0]
[null,null,null,null,null,null,null,null,null,0]
[null,null,null,null,null,null,null,null,null,0]
[null,null,null,null,null,null,null,null,null,0]
[null,null,null,null,null,null,null,null,null,0]
[null,null,null,null,null,null,null,null,null,0]
[null,null,null,null,null,null,null,null,null,0]
[null,null,null,null,null,null,null,null,null,0]
[null,null,null,null,null,null,null,null,null,0]
[null,null,null,null,null,null,null,null,null,0]
[null,null,null,null,null,null,null,null,null,0]
[null,null,null,null,null,null,null,null,null,0]
[null,null,null,null,null,null,null,null,null,0]
[null,null,null,null,null,null,null,null,null,0]
[null,null,null,null,null,null,null,null,null,0]
[null,null,null,null,null,null,null,null,null,0]
[null,null,null,null,null,null,null,null,null,0]
[null,null,null,null,null,null,null,null,null,0]
[null,null,null,null,null,null,null,null,null,0]
[null,null,null,null,null,null,null,null,null,0]
[null,null,null,null,null,null,null,null,null,0]
[null,null,null,null,null,null,null,null,null,0]
[null,null,null,null,null,null,null,null,null,0]
[null,null,null,null,null,null,null,null,null,0]
[null,null,null,null,null,null,null,null,null,0]
[null,null,null,null,null,null,null,null,null,0]
[null,null,null,null,null,null,null,null,null,0]
[null,null,null,null,null,null,null,null,null,0]
[null,null,null,null,null,null,null,null,null,0]
[null,null,null,null,null,null,null,null,null,0]
[null,null,null,null,null,null,null,null,null,0]
[null,null,null,null,null,null,null,null,null,0]
[null,null,null,null,null,null,null,null,null,0]
[null,null,null,null,null,null,null,null,null,0]
[null,null,null,null,null,null,null,null,null,0]
[null,null,null,null,null,null,null,null,null,0]
[null,null,null,null,null,null,null,null,null,0]
[null,null,null,null,null,null,null,null,null,0]
[null,null,null,null,null,null,null,null,null,0]
[null,null,null,null,null,null,null,null,null,0]
[null,null,null,null,null,null,null,null,null,0]
[null,null,null,null,null,null,null,null,null,0]
[null,null,null,null,null,null,null,null,null,0]
[null,null,null,null,null,null,null,null,null,0]
[null,null,null,null,null,null,null,null,null,0]
[null,null,null,null,null,null,null,null,null,0]
[null,null,null,null,null,null,null,null,null,0]
[null,null,null,null,null,null,null,null,null,0]
[null,null,null,null,null,null,null,null,null,0]
[null,null,null,null,null,null,null,null,null,{"$f":"H579+I579","v":0}]
[null,null,null,null,null,null,null,null,null,0]
[null,null,null,null,null,null,null,null,null,0]
[null,null,null,null,null,null,null,null,null,0]
[null,null,null,null,null,null,null,null,null,0]
[null,null,null,null,null,null,null,null,null,0]
[null,null,null,null,null,null,null,null,null,0]
[null,null,null,null,null,null,null,null,null,0]
[null,null,null,null,null,null,null,null,null,0]
[null,null,null,null,null,null,null,null,null,0]
[null,null,null,null,null,null,null,null,null,0]
[null,null,null,null,null,null,null,null,null,0]
[null,null,null,null,null,null,null,null,null,0]
[null,null,null,null,null,null,null,null,null,0]
[null,null,null,null,null,null,null,null,null,0]
[null,null,null,null,null,null,null,null,null,0]
[null,null,null,null,null,null,null,null,null,0]
[null,null,null,null,null,null,null,null,null,0]
[null,null,null,null,null,null,null,null,null,0]
[null,null,null,null,null,null,null,null,null,0]
[null,null,null,null,null,null,null,null,null,0]
[null,null,null,null,null,null,null,null,null,0]

{"sheet":"Sheet3","index":2,"n_rows":0,"n_cols":0,"rows_kept":0,"cut":false,"hidden":false,"merged":[]}